{"text_format":"1","workbook":"xlsx","n_sheets":6,"sheets":["入力フォーム","設問のコントロール","ガイドライン文書","回答者情報","事前設問","設問及び配点項目"],"not_rendered":{"charts":4,"images":69,"macros":1,"external_links":0,"defined_names":1,"comments":0,"pivot_tables":0},"unopened":[],"bounds":{"document_bytes":16777216,"sheet_cells":100000,"rows_first":2000,"rows_last":500,"rows_between":2000,"halvings":0,"cell_chars":16384,"cell_head_chars":4096},"cells_cut":0,"cells_raw":0,"read":"whole","date_system":"1900"}

{"sheet":"入力フォーム","index":0,"n_rows":664,"n_cols":14,"rows_kept":664,"cut":false,"hidden":false,"merged":[[493,5,493,8],[494,5,494,8],[495,5,495,8],[496,5,496,8],[497,5,497,8],[498,5,498,8],[499,5,499,8],[486,5,486,8],[487,5,487,8],[488,5,488,8],[490,5,490,8],[428,5,428,8],[429,5,429,8],[469,5,469,8],[470,5,470,8],[471,5,471,8],[472,5,472,8],[473,5,473,8],[484,5,484,8],[485,5,485,8],[475,5,475,8],[476,5,476,8],[477,5,477,8],[478,5,478,8],[479,5,479,8],[480,5,480,8],[481,5,481,8],[467,5,467,8],[450,5,450,8],[451,5,451,8],[379,5,379,8],[406,5,406,8],[418,5,418,8],[443,5,443,8],[444,5,444,8],[445,5,445,8],[446,5,446,8],[448,5,448,8],[449,5,449,8],[408,5,408,8],[409,5,409,8],[410,5,410,8],[411,5,411,8],[412,5,412,8],[398,5,398,8],[399,5,399,8],[400,5,400,8],[401,5,401,8],[402,5,402,8],[403,5,403,8],[404,5,404,8],[415,5,415,8],[421,5,421,8],[423,5,423,8],[273,5,273,8],[274,5,274,8],[275,5,275,8],[276,5,276,8],[277,5,277,8],[280,5,280,8],[281,5,281,8],[374,5,374,8],[375,5,375,8],[364,5,364,8],[365,5,365,8],[366,5,366,8],[367,5,367,8],[368,5,368,8],[369,5,369,8],[370,5,370,8],[331,5,331,8],[332,5,332,8],[333,5,333,8],[334,5,334,8],[335,5,335,8],[336,5,336,8],[330,5,330,8],[338,5,338,8],[221,5,221,8],[222,5,222,8],[223,5,223,8],[224,5,224,8],[225,5,225,8],[226,5,226,8],[227,5,227,8],[230,5,230,8],[169,5,169,8],[170,5,170,8],[171,5,171,8],[172,5,172,8],[173,5,173,8],[174,5,174,8],[175,5,175,8],[186,5,186,8],[187,5,187,8],[177,5,177,8],[178,5,178,8],[179,5,179,8],[180,5,180,8],[181,5,181,8],[182,5,182,8],[183,5,183,8],[133,5,133,8],[134,5,134,8],[135,5,135,8],[136,5,136,8],[137,5,137,8],[138,5,138,8],[156,5,156,8],[117,5,117,8],[118,5,118,8],[119,5,119,8],[120,5,120,8],[121,5,121,8],[122,5,122,8],[125,5,125,8],[126,5,126,8],[127,5,127,8],[128,5,128,8],[129,5,129,8],[130,5,130,8],[150,5,150,8],[151,5,151,8],[152,5,152,8],[92,5,92,8],[93,5,93,8],[94,5,94,8],[95,5,95,8],[433,5,433,8],[434,5,434,8],[435,5,435,8],[436,5,436,8],[437,5,437,8],[96,5,96,8],[106,5,106,8],[107,5,107,8],[108,5,108,8],[109,5,109,8],[110,5,110,8],[111,5,111,8],[112,5,112,8],[98,5,98,8],[99,5,99,8],[100,5,100,8],[101,5,101,8],[102,5,102,8],[103,5,103,8],[104,5,104,8],[8,1,8,6],[9,1,9,6],[10,1,10,6],[74,5,74,8],[75,5,75,8],[116,5,116,8],[124,5,124,8],[153,5,153,8],[154,5,154,8],[139,5,139,8],[76,5,76,8],[77,5,77,8],[78,5,78,8],[79,5,79,8],[80,5,80,8],[82,5,82,8],[83,5,83,8],[84,5,84,8],[85,5,85,8],[86,5,86,8],[87,5,87,8],[88,5,88,8],[90,5,90,8],[91,5,91,8],[161,5,161,8],[163,5,163,8],[164,5,164,8],[165,5,165,8],[142,5,142,8],[143,5,143,8],[144,5,144,8],[145,5,145,8],[146,5,146,8],[147,5,147,8],[148,5,148,8],[162,5,162,8],[155,5,155,8],[160,5,160,8],[166,5,166,8],[188,5,188,8],[189,5,189,8],[190,5,190,8],[191,5,191,8],[192,5,192,8],[195,5,195,8],[196,5,196,8],[197,5,197,8],[198,5,198,8],[199,5,199,8],[200,5,200,8],[201,5,201,8],[203,5,203,8],[204,5,204,8],[205,5,205,8],[206,5,206,8],[207,5,207,8],[208,5,208,8],[209,5,209,8],[211,5,211,8],[212,5,212,8],[213,5,213,8],[214,5,214,8],[215,5,215,8],[216,5,216,8],[217,5,217,8],[231,5,231,8],[232,5,232,8],[233,5,233,8],[234,5,234,8],[235,5,235,8],[236,5,236,8],[238,5,238,8],[239,5,239,8],[240,5,240,8],[241,5,241,8],[242,5,242,8],[243,5,243,8],[244,5,244,8],[247,5,247,8],[248,5,248,8],[249,5,249,8],[250,5,250,8],[251,5,251,8],[252,5,252,8],[253,5,253,8],[255,5,255,8],[256,5,256,8],[257,5,257,8],[258,5,258,8],[259,5,259,8],[260,5,260,8],[272,5,272,8],[261,5,261,8],[263,5,263,8],[264,5,264,8],[265,5,265,8],[266,5,266,8],[267,5,267,8],[268,5,268,8],[269,5,269,8],[271,5,271,8],[254,4,254,8],[282,5,282,8],[283,5,283,8],[284,5,284,8],[285,5,285,8],[286,5,286,8],[288,5,288,8],[289,5,289,8],[290,5,290,8],[291,5,291,8],[292,5,292,8],[293,5,293,8],[294,5,294,8],[296,5,296,8],[297,5,297,8],[298,5,298,8],[299,5,299,8],[300,5,300,8],[301,5,301,8],[322,5,322,8],[323,5,323,8],[324,5,324,8],[325,5,325,8],[326,5,326,8],[327,5,327,8],[328,5,328,8],[339,5,339,8],[340,5,340,8],[341,5,341,8],[342,5,342,8],[343,5,343,8],[344,5,344,8],[346,5,346,8],[347,5,347,8],[376,5,376,8],[377,5,377,8],[378,5,378,8],[373,5,373,8],[358,5,358,8],[359,5,359,8],[360,5,360,8],[356,5,356,8],[357,5,357,8],[302,5,302,8],[314,5,314,8],[315,5,315,8],[316,5,316,8],[317,5,317,8],[318,5,318,8],[319,5,319,8],[489,5,489,8],[305,5,305,8],[306,5,306,8],[307,5,307,8],[308,5,308,8],[309,5,309,8],[310,5,310,8],[311,5,311,8],[313,5,313,8],[348,5,348,8],[349,5,349,8],[350,5,350,8],[351,5,351,8],[352,5,352,8],[354,5,354,8],[355,5,355,8],[468,5,468,8],[424,5,424,8],[425,5,425,8],[426,5,426,8],[427,5,427,8],[381,5,381,8],[382,5,382,8],[383,5,383,8],[384,5,384,8],[385,5,385,8],[386,5,386,8],[387,5,387,8],[416,5,416,8],[417,5,417,8],[389,5,389,8],[390,5,390,8],[391,5,391,8],[392,5,392,8],[393,5,393,8],[394,5,394,8],[395,5,395,8],[407,5,407,8],[45,4,45,8],[7,1,7,6],[511,1,513,8],[505,1,505,8],[510,1,510,8],[506,1,506,8],[507,1,509,8],[419,5,419,8],[420,5,420,8],[440,5,440,8],[441,5,441,8],[442,5,442,8],[431,5,431,8],[432,5,432,8],[452,5,452,8],[453,5,453,8],[454,5,454,8],[457,5,457,8],[458,5,458,8],[459,5,459,8],[460,5,460,8],[461,5,461,8],[462,5,462,8],[463,5,463,8]]}
[null,"製品含有化学物質管理ガイドライン　自己診断シート"]
[]
[]
[]
[null,"製品含有化学物質管理ガイドライン　自己診断シート"]
[]
[null,"回答者情報"]
[null,"回答日（yyyy/mm/dd）"]
[null,"仕入れ先コード"]
[null,"会社名",null,null,null,null,null,null,""]
[null,"組織名（部門名・部署名・事業所名など）",null,null,null,null,null,null,""]
[null,"製品含有化学物質管理業務",null,null,null,null,"責任者部署",null,""]
[null,"（環境業務）",null,null,null,null,"責任者様情報","役職",""]
[null,null,null,null,null,null,null,"お名前",""]
[null,null,null,null,null,null,null,"電話番号",""]
[null,null,null,null,null,null,null,"E-mail",""]
[null,"担当部署",null,null,null,null,"回答部署",null,""]
[null,null,null,null,null,null,"担当者様情報","役職",""]
[null,null,null,null,null,null,null,"お名前",""]
[null,null,null,null,null,null,null,"電話番号",""]
[null,null,null,null,null,null,null,"E-mail",""]
[]
[]
[]
[null,"事前設問項目"]
[null,"納入製品・取引内容に関する確認"]
[null,null,null,"C1.","現在量産中の製品に対し、部品または材料を納入している",null,null,null,null,null,{"$f":"REPT(\"a\"&CHAR(10)&\"b\",ROUNDDOWN(LEN(F27)/66,0))","v":""},"C1."]
[null,null,null,null,null,"はい",null,"具体事例(任意)",""]
[null,null,null,null,null,"いいえ"]
[null,null,null,"C2.","旧型補給用（量産終了後）の部品、材料を納入している",null,null,null,null,null,{"$f":"REPT(\"a\"&CHAR(10)&\"b\",ROUNDDOWN(LEN(F30)/66,0))","v":""},"C2."]
[null,null,null,null,null,"はい",null,"具体事例(任意)",""]
[null,null,null,null,null,"いいえ"]
[null,null,null,"C3.","試作部品を納入している",null,null,null,null,null,{"$f":"REPT(\"a\"&CHAR(10)&\"b\",ROUNDDOWN(LEN(F33)/66,0))","v":""},"C3."]
[null,null,null,null,null,"はい",null,"具体事例(任意)",""]
[null,null,null,null,null,"いいえ"]
[null,null,null,"C4.","工場設備や工場副資材を納入している",null,null,null,null,null,{"$f":"REPT(\"a\"&CHAR(10)&\"b\",ROUNDDOWN(LEN(F36)/66,0))","v":""},"C4."]
[null,null,null,null,null,"はい",null,"具体事例(任意)",""]
[null,null,null,null,null,"いいえ"]
[null,null,null,"C5.","部品・材料の設計・開発を行っている",null,null,null,null,null,{"$f":"REPT(\"a\"&CHAR(10)&\"b\",ROUNDDOWN(LEN(F39)/66,0))","v":""},"C5."]
[null,null,null,null,null,"はい",null,"具体事例(任意)",""]
[null,null,null,null,null,"いいえ"]
[null,null,null,"C6.","実際の部品・材料の製造は行わず、商社・代理店として納入している",null,null,null,null,null,{"$f":"REPT(\"a\"&CHAR(10)&\"b\",ROUNDDOWN(LEN(F42)/66,0))","v":""},"C6."]
[null,null,null,null,null,"はい",null,"具体事例(任意)",""]
[null,null,null,null,null,"いいえ"]
[null,"事業形態に関する確認"]
[null,null,null,"C7.","自社製造工程中にガイドライン表4.2に示す、変換工程（酸化反応、還元反応などによる化学物質の組成変化、濃縮、蒸発などによる化学物質の濃度変化が発生する製造工程）がある",null,null,null,null,null,{"$f":"REPT(\"a\"&CHAR(10)&\"b\",ROUNDDOWN(LEN(F46)/66,0))","v":""},"C7."]
[null,null,null,null,null,"はい",null,"具体事例(任意)",""]
[null,null,null,null,null,"いいえ"]
[null,null,null,"C8.","生産活動を行っている子会社・海外子会社・社外委託先がある",null,null,null,null,null,null,"C8."]
[null,null,null,null,null,"はい",null,"具体事例(任意)",""]
[null,null,null,null,null,"いいえ"]
[null,"管理状況に関する基本事項"]
[null,null,null,"C9.","業界標準の製品含有物質情報伝達ツール（IMDS・JAPIAシート・AISシート・chemSHELPA等）を使用している",null,null,null,null,null,null,"C9."]
[null,null,null,null,null,"はい",null,"具体事例(任意)",""]
[null,null,null,null,null,"いいえ"]
[null,null,null,"C10.","C9で選択したツールの管理基準（GADSLなど）の最新版を適用している",null,null,null,null,null,null,"C10."]
[null,null,null,null,null,"はい",null,"具体事例(任意)",""]
[null,null,null,null,null,"いいえ"]
[null,null,null,"C11.","顧客管理基準の最新版(ない場合は最新のGADSL)を使用している",null,null,null,null,null,null,"C11."]
[null,null,null,null,null,"はい",null,"具体事例(任意)",""]
[null,null,null,null,null,"いいえ"]
[null,null,null,"C12.","顧客設定のIMDSマニュアル(ない場合はIMDSトレーニングマニュアル)の最新版を参照している",null,null,null,null,null,null,"C12."]
[null,null,null,null,null,"はい",null,"具体事例(任意)",""]
[null,null,null,null,null,"いいえ"]
[null,null,null,"C13.","資本金3億円以下、または従業員数が300人以下である",null,null,null,null,null,null,"C13."]
[null,null,null,null,null,"はい",null,"具体事例(任意)",""]
[null,null,null,null,null,"いいえ"]
[]
[]
[]
[null,"チェックシート入力フォーム"]
[null,"1.","組織の状態とマネジメントシステム"]
[null,null,"1.1.","マネジメントシステム",null,null,null,null,null,null,null,{"$f":"D73","v":"マネジメントシステム"}]
[null,null,null,"1.1.1.","マネジメントシステム（ISO14001の取得 もしくは その他環境関連規格（簡易EMS））の取得と実態",null,null,null,null,null,null,"Q1."]
[null,null,null,null,null,"マネジメントシステムを取得していない",null,null,null,null,{"$f":"REPT(\"a\"&CHAR(10)&\"b\",ROUNDDOWN(LEN(F75)/66,0))","v":""},"無",null,{"$f":"IF(OFFSET(設問及び配点項目!$A$1,MATCH(VALUE(MID($L74,2,LEN($L74)-2)),設問及び配点項目!C:C,0)-1,11,1,1)=\"\",\"\",OFFSET(設問及び配点項目!$A$1,MATCH(VALUE(MID($L74,2,LEN($L74)-2)),設問及び配点項目!C:C,0)-1,11,1,1))","v":"マネジメントシステムを取得していない"}]
[null,null,null,null,null,"",null,null,null,null,"",0]
[null,null,null,null,null,"マネジメントシステムを取得しているが、その後の維持管理の仕組みがない",null,null,null,null,"",1]
[null,null,null,null,null,"",null,null,null,null,"",2]
[null,null,null,null,null,"不定期ではあるが、取得した基準に基づく対応を実施している",null,null,null,null,"",3,null,{"$f":"IF(OFFSET(設問及び配点項目!$A$1,MATCH(VALUE(MID($L74,2,LEN($L74)-2)),設問及び配点項目!C:C,0)-1,12,1,1)=\"\",\"\",OFFSET(設問及び配点項目!$A$1,MATCH(VALUE(MID($L74,2,LEN($L74)-2)),設問及び配点項目!C:C,0)-1,12,1,1))","v":"マネジメントシステムを取得しているが、その後の維持管理の仕組みがない"}]
[null,null,null,null,null,"維持管理のために、社内における内部監査を定期的に実施している",null,null,null,null,"",4]
[null,null,null,null,null,"維持管理のために、内部監査と外部監査を定期的に実施している",null,null,null,null,"",5]
[null,null,null,"1.1.2.","NQ",null,null,null,null,null,null,"Q2."]
[null,null,null,null,null,"",null,null,null,null,{"$f":"REPT(\"a\"&CHAR(10)&\"b\",ROUNDDOWN(LEN(F83)/66,0))","v":""},"無",null,{"$f":"IF(OFFSET(設問及び配点項目!$A$1,MATCH(VALUE(MID($L82,2,LEN($L82)-2)),設問及び配点項目!C:C,0)-1,11,1,1)=\"\",\"\",OFFSET(設問及び配点項目!$A$1,MATCH(VALUE(MID($L82,2,LEN($L82)-2)),設問及び配点項目!C:C,0)-1,11,1,1))","v":""}]
[null,null,null,null,null,"",null,null,null,null,"",0]
[null,null,null,null,null,"",null,null,null,null,"",1]
[null,null,null,null,null,"",null,null,null,null,"",2]
[null,null,null,null,null,"",null,null,null,null,"",3,null,{"$f":"IF(OFFSET(設問及び配点項目!$A$1,MATCH(VALUE(MID($L82,2,LEN($L82)-2)),設問及び配点項目!C:C,0)-1,12,1,1)=\"\",\"\",OFFSET(設問及び配点項目!$A$1,MATCH(VALUE(MID($L82,2,LEN($L82)-2)),設問及び配点項目!C:C,0)-1,12,1,1))","v":""}]
[null,null,null,null,null,"",null,null,null,null,"",4]
[null,null,null,null,null,"",null,null,null,null,"",5]
[null,null,null,"1.1.3.","NQ",null,null,null,null,null,null,"Q3."]
[null,null,null,null,null,"",null,null,null,null,{"$f":"REPT(\"a\"&CHAR(10)&\"b\",ROUNDDOWN(LEN(F91)/66,0))","v":""},"無",null,{"$f":"IF(OFFSET(設問及び配点項目!$A$1,MATCH(VALUE(MID($L90,2,LEN($L90)-2)),設問及び配点項目!C:C,0)-1,11,1,1)=\"\",\"\",OFFSET(設問及び配点項目!$A$1,MATCH(VALUE(MID($L90,2,LEN($L90)-2)),設問及び配点項目!C:C,0)-1,11,1,1))","v":""}]
[null,null,null,null,null,"",null,null,null,null,"",0]
[null,null,null,null,null,"",null,null,null,null,"",1]
[null,null,null,null,null,"",null,null,null,null,"",2]
[null,null,null,null,null,"",null,null,null,null,"",3,null,{"$f":"IF(OFFSET(設問及び配点項目!$A$1,MATCH(VALUE(MID($L90,2,LEN($L90)-2)),設問及び配点項目!C:C,0)-1,12,1,1)=\"\",\"\",OFFSET(設問及び配点項目!$A$1,MATCH(VALUE(MID($L90,2,LEN($L90)-2)),設問及び配点項目!C:C,0)-1,12,1,1))","v":""}]
[null,null,null,null,null,"",null,null,null,null,"",4]
[null,null,null,null,null,"",null,null,null,null,"",5]
[null,null,null,"1.1.4.","NQ",null,null,null,null,null,null,"Q4."]
[null,null,null,null,null,"",null,null,null,null,{"$f":"REPT(\"a\"&CHAR(10)&\"b\",ROUNDDOWN(LEN(F99)/66,0))","v":""},"無",null,{"$f":"IF(OFFSET(設問及び配点項目!$A$1,MATCH(VALUE(MID($L98,2,LEN($L98)-2)),設問及び配点項目!C:C,0)-1,11,1,1)=\"\",\"\",OFFSET(設問及び配点項目!$A$1,MATCH(VALUE(MID($L98,2,LEN($L98)-2)),設問及び配点項目!C:C,0)-1,11,1,1))","v":""}]
[null,null,null,null,null,"",null,null,null,null,"",0]
[null,null,null,null,null,"",null,null,null,null,"",1]
[null,null,null,null,null,"",null,null,null,null,"",2]
[null,null,null,null,null,"",null,null,null,null,"",3,null,{"$f":"IF(OFFSET(設問及び配点項目!$A$1,MATCH(VALUE(MID($L98,2,LEN($L98)-2)),設問及び配点項目!C:C,0)-1,12,1,1)=\"\",\"\",OFFSET(設問及び配点項目!$A$1,MATCH(VALUE(MID($L98,2,LEN($L98)-2)),設問及び配点項目!C:C,0)-1,12,1,1))","v":""}]
[null,null,null,null,null,"",null,null,null,null,"",4]
[null,null,null,null,null,"",null,null,null,null,"",5]
[null,null,null,"1.1.5.","NQ",null,null,null,null,null,null,"Q5."]
[null,null,null,null,null,"",null,null,null,null,{"$f":"REPT(\"a\"&CHAR(10)&\"b\",ROUNDDOWN(LEN(F107)/66,0))","v":""},"無",null,{"$f":"IF(OFFSET(設問及び配点項目!$A$1,MATCH(VALUE(MID($L106,2,LEN($L106)-2)),設問及び配点項目!C:C,0)-1,11,1,1)=\"\",\"\",OFFSET(設問及び配点項目!$A$1,MATCH(VALUE(MID($L106,2,LEN($L106)-2)),設問及び配点項目!C:C,0)-1,11,1,1))","v":""}]
[null,null,null,null,null,"",null,null,null,null,"",0]
[null,null,null,null,null,"",null,null,null,null,"",1]
[null,null,null,null,null,"",null,null,null,null,"",2]
[null,null,null,null,null,"",null,null,null,null,"",3,null,{"$f":"IF(OFFSET(設問及び配点項目!$A$1,MATCH(VALUE(MID($L106,2,LEN($L106)-2)),設問及び配点項目!C:C,0)-1,12,1,1)=\"\",\"\",OFFSET(設問及び配点項目!$A$1,MATCH(VALUE(MID($L106,2,LEN($L106)-2)),設問及び配点項目!C:C,0)-1,12,1,1))","v":""}]
[null,null,null,null,null,"",null,null,null,null,"",4]
[null,null,null,null,null,"",null,null,null,null,"",5]
[null,"2.","基本方針・管理体制"]
[null,null,"2.1.","製品含有化学物質に関する基本方針",null,null,null,null,null,null,null,{"$f":"D115","v":"製品含有化学物質に関する基本方針"}]
[null,null,null,"2.1.1.","製品含有化学物質管理に関する方針の有無とその社内（組織内）、社外への展開状況",null,null,null,null,null,null,"Q6."]
[null,null,null,null,null,"製品含有化学物質管理に関する方針がない",null,null,null,null,{"$f":"REPT(\"a\"&CHAR(10)&\"b\",ROUNDDOWN(LEN(F117)/66,0))","v":""},"無",null,{"$f":"IF(OFFSET(設問及び配点項目!$A$1,MATCH(VALUE(MID($L116,2,LEN($L116)-2)),設問及び配点項目!C:C,0)-1,11,1,1)=\"\",\"\",OFFSET(設問及び配点項目!$A$1,MATCH(VALUE(MID($L116,2,LEN($L116)-2)),設問及び配点項目!C:C,0)-1,11,1,1))","v":"製品含有化学物質管理に関する方針がない"}]
[null,null,null,null,null,"",null,null,null,null,"",0]
[null,null,null,null,null,"実務担当部署としての方針はあるが、会社（組織）方針にはなっていない",null,null,null,null,"",1]
[null,null,null,null,null,"",null,null,null,null,"",2]
[null,null,null,null,null,"会社（組織）方針として設定され、社内（組織内）展開、社外への公表が行われている",null,null,null,null,"",3,null,{"$f":"IF(OFFSET(設問及び配点項目!$A$1,MATCH(VALUE(MID($L116,2,LEN($L116)-2)),設問及び配点項目!C:C,0)-1,12,1,1)=\"\",\"\",OFFSET(設問及び配点項目!$A$1,MATCH(VALUE(MID($L116,2,LEN($L116)-2)),設問及び配点項目!C:C,0)-1,12,1,1))","v":"実務担当部署としての方針はあるが、会社（組織）方針にはなっていない"}]
[null,null,null,null,null,"方針は定期的に見直し、更新が行われ、その内容が社内（組織内）に公表されている",null,null,null,null,"",4]
[null,null,null,null,null,"方針は定期的に見直し、更新が行われ、その内容が社内（組織内）だけでなく社外にも公表されている",null,null,null,null,"",5]
[null,null,null,"2.1.2.","NQ",null,null,null,null,null,null,"Q7."]
[null,null,null,null,null,"",null,null,null,null,{"$f":"REPT(\"a\"&CHAR(10)&\"b\",ROUNDDOWN(LEN(F125)/66,0))","v":""},"無",null,{"$f":"IF(OFFSET(設問及び配点項目!$A$1,MATCH(VALUE(MID($L124,2,LEN($L124)-2)),設問及び配点項目!C:C,0)-1,11,1,1)=\"\",\"\",OFFSET(設問及び配点項目!$A$1,MATCH(VALUE(MID($L124,2,LEN($L124)-2)),設問及び配点項目!C:C,0)-1,11,1,1))","v":""}]
[null,null,null,null,null,"",null,null,null,null,"",0]
[null,null,null,null,null,"",null,null,null,null,"",1]
[null,null,null,null,null,"",null,null,null,null,"",2]
[null,null,null,null,null,"",null,null,null,null,"",3,null,{"$f":"IF(OFFSET(設問及び配点項目!$A$1,MATCH(VALUE(MID($L124,2,LEN($L124)-2)),設問及び配点項目!C:C,0)-1,12,1,1)=\"\",\"\",OFFSET(設問及び配点項目!$A$1,MATCH(VALUE(MID($L124,2,LEN($L124)-2)),設問及び配点項目!C:C,0)-1,12,1,1))","v":""}]
[null,null,null,null,null,"",null,null,null,null,"",4]
[null,null,null,null,null,"",null,null,null,null,"",5]
[null,null,"2.2.","製品含有化学物質管理体制",null,null,null,null,null,null,null,{"$f":"D132","v":"製品含有化学物質管理体制"}]
[null,null,null,"2.2.1.","会社（組織）における製品含有化学物質管理体制の有無とその実態",null,null,null,null,null,null,"Q8."]
[null,null,null,null,null,"会社（組織）における製品含有化学物質管理体制がない",null,null,null,null,{"$f":"REPT(\"a\"&CHAR(10)&\"b\",ROUNDDOWN(LEN(F134)/66,0))","v":""},"無",null,{"$f":"IF(OFFSET(設問及び配点項目!$A$1,MATCH(VALUE(MID($L133,2,LEN($L133)-2)),設問及び配点項目!C:C,0)-1,11,1,1)=\"\",\"\",OFFSET(設問及び配点項目!$A$1,MATCH(VALUE(MID($L133,2,LEN($L133)-2)),設問及び配点項目!C:C,0)-1,11,1,1))","v":"会社（組織）における製品含有化学物質管理体制がない"}]
[null,null,null,null,null,"",null,null,null,null,"",0]
[null,null,null,null,null,"会社（組織）における製品含有化学物質管理体制が存在するが、規定になっていない",null,null,null,null,"",1]
[null,null,null,null,null,"",null,null,null,null,"",2]
[null,null,null,null,null,"会社（組織）における製品含有化学物質管理体制が記載された規定があり、業務が実施されている",null,null,null,null,"",3,null,{"$f":"IF(OFFSET(設問及び配点項目!$A$1,MATCH(VALUE(MID($L133,2,LEN($L133)-2)),設問及び配点項目!C:C,0)-1,12,1,1)=\"\",\"\",OFFSET(設問及び配点項目!$A$1,MATCH(VALUE(MID($L133,2,LEN($L133)-2)),設問及び配点項目!C:C,0)-1,12,1,1))","v":"会社（組織）における製品含有化学物質管理体制が存在するが、規定になっていない"}]
[null,null,null,null,null,"規定に基づき業務が確実に遂行されており、また規定の定期的な見直し、改訂を行う仕組みがあり、実施されている",null,null,null,null,"",4]
[null,null,null,null,null,"最新状態の規定に基づいた社内関連業務の管理、運営の実態を評価、確認する仕組みがあり、実行されている（上位報告体、社内監査など）",null,null,null,null,"",5]
[null,null,"2.3.","国内子会社、海外子会社、社外委託先に対するガバナンス",null,null,null,null,null,null,null,{"$f":"D141","v":"国内子会社、海外子会社、社外委託先に対するガバナンス"}]
[null,null,null,"2.3.1.","国内子会社、海外子会社、社外委託先に対するガバナンス及び管理体制の確立とその実態",null,null,null,null,null,null,"Q9."]
[null,null,null,null,null,"国内子会社、海外子会社、社外委託先に対するガバナンス及び管理体制がない",null,null,null,null,{"$f":"REPT(\"a\"&CHAR(10)&\"b\",ROUNDDOWN(LEN(F143)/66,0))","v":""},"無",null,{"$f":"IF(OFFSET(設問及び配点項目!$A$1,MATCH(VALUE(MID($L142,2,LEN($L142)-2)),設問及び配点項目!C:C,0)-1,11,1,1)=\"\",\"\",OFFSET(設問及び配点項目!$A$1,MATCH(VALUE(MID($L142,2,LEN($L142)-2)),設問及び配点項目!C:C,0)-1,11,1,1))","v":"国内子会社、海外子会社、社外委託先に対するガバナンス及び管理体制がない"}]
[null,null,null,null,null,"",null,null,null,null,"",0]
[null,null,null,null,null,"国内子会社、海外子会社、社外委託先に対する管理体制を記載した規定は無いが、双方が合意した体制がある",null,null,null,null,"",1]
[null,null,null,null,null,"",null,null,null,null,"",2]
[null,null,null,null,null,"国内子会社、海外子会社、社外委託先に対する管理体制を記載した規定があり、業務が実施されている",null,null,null,null,"",3,null,{"$f":"IF(OFFSET(設問及び配点項目!$A$1,MATCH(VALUE(MID($L142,2,LEN($L142)-2)),設問及び配点項目!C:C,0)-1,12,1,1)=\"\",\"\",OFFSET(設問及び配点項目!$A$1,MATCH(VALUE(MID($L142,2,LEN($L142)-2)),設問及び配点項目!C:C,0)-1,12,1,1))","v":"国内子会社、海外子会社、社外委託先に対する管理体制を記載した規定は無いが、双方が合意した体制がある"}]
[null,null,null,null,null,"規定に基づき業務が確実に遂行されており、また規定の定期的な見直し、改訂を行う仕組みがあり、実施されている",null,null,null,null,"",4]
[null,null,null,null,null,"最新状態の規定に基づいた社内関連業務の管理、運営の実態を評価、確認する仕組みがあり、評価・確認されている",null,null,null,null,"",5]
[null,null,null,"2.3.2.","NQ",null,null,null,null,null,null,"Q10."]
[null,null,null,null,null,"",null,null,null,null,{"$f":"REPT(\"a\"&CHAR(10)&\"b\",ROUNDDOWN(LEN(F151)/66,0))","v":""},"無",null,{"$f":"IF(OFFSET(設問及び配点項目!$A$1,MATCH(VALUE(MID($L150,2,LEN($L150)-2)),設問及び配点項目!C:C,0)-1,11,1,1)=\"\",\"\",OFFSET(設問及び配点項目!$A$1,MATCH(VALUE(MID($L150,2,LEN($L150)-2)),設問及び配点項目!C:C,0)-1,11,1,1))","v":""}]
[null,null,null,null,null,"",null,null,null,null,"",0]
[null,null,null,null,null,"",null,null,null,null,"",1]
[null,null,null,null,null,"",null,null,null,null,"",2]
[null,null,null,null,null,"",null,null,null,null,"",3,null,{"$f":"IF(OFFSET(設問及び配点項目!$A$1,MATCH(VALUE(MID($L150,2,LEN($L150)-2)),設問及び配点項目!C:C,0)-1,12,1,1)=\"\",\"\",OFFSET(設問及び配点項目!$A$1,MATCH(VALUE(MID($L150,2,LEN($L150)-2)),設問及び配点項目!C:C,0)-1,12,1,1))","v":""}]
[null,null,null,null,null,"",null,null,null,null,"",4]
[null,null,null,null,null,"",null,null,null,null,"",5]
[null,"3.","製品含有化学物質管理の遂行"]
[null,null,"3.1.","製品含有化学物質管理基準",null,null,null,null,null,null,null,{"$f":"D159","v":"製品含有化学物質管理基準"}]
[null,null,null,"3.1.1.","製品含有化学物質管理基準（守るべき法規制・管理対象物質・管理方法 等)の有無",null,null,null,null,null,null,"Q11."]
[null,null,null,null,null,"製品含有化学物質管理基準がない",null,null,null,null,{"$f":"REPT(\"a\"&CHAR(10)&\"b\",ROUNDDOWN(LEN(F161)/66,0))","v":""},"無",null,{"$f":"IF(OFFSET(設問及び配点項目!$A$1,MATCH(VALUE(MID($L160,2,LEN($L160)-2)),設問及び配点項目!C:C,0)-1,11,1,1)=\"\",\"\",OFFSET(設問及び配点項目!$A$1,MATCH(VALUE(MID($L160,2,LEN($L160)-2)),設問及び配点項目!C:C,0)-1,11,1,1))","v":"製品含有化学物質管理基準がない"}]
[null,null,null,null,null,"",null,null,null,null,"",0]
[null,null,null,null,null,"業務実務担当部署としての基準はあるが、会社（組織）で合意された基準にはなっていない",null,null,null,null,"",1]
[null,null,null,null,null,"",null,null,null,null,"",2]
[null,null,null,null,null,"会社（組織）で合意された基準があり、社内（組織内）展開、社外への公表が行われている",null,null,null,null,"",3,null,{"$f":"IF(OFFSET(設問及び配点項目!$A$1,MATCH(VALUE(MID($L160,2,LEN($L160)-2)),設問及び配点項目!C:C,0)-1,12,1,1)=\"\",\"\",OFFSET(設問及び配点項目!$A$1,MATCH(VALUE(MID($L160,2,LEN($L160)-2)),設問及び配点項目!C:C,0)-1,12,1,1))","v":"業務実務担当部署としての基準はあるが、会社（組織）で合意された基準にはなっていない"}]
[null,null,null,null,null,"社内外の全ての関係先に展開、周知徹底できており、定期的な基準の見直しを行っている",null,null,null,null,"",4]
[null,null,null,null,null,"社内外の全ての関係先が最新版の基準に準じた対応ができていることを確認できている",null,null,null,null,"",5]
[null,null,"3.2.","確実な製品含有化学物質管理業務遂行の為の役割分担及び業務手順の規定",null,null,null,null,null,null,null,{"$f":"D168","v":"確実な製品含有化学物質管理業務遂行の為の役割分担及び業務手順の規定"}]
[null,null,null,"3.2.1.","製品含有化学物質管理業務遂行の為の役割分担・業務手順を記載した規定の有無と、その実態",null,null,null,null,null,null,"Q12."]
[null,null,null,null,null,"製品含有化学物質管理体制に基づいた業務遂行の役割分担と業務手順を記載したルールがない",null,null,null,null,{"$f":"REPT(\"a\"&CHAR(10)&\"b\",ROUNDDOWN(LEN(F170)/66,0))","v":""},"無",null,{"$f":"IF(OFFSET(設問及び配点項目!$A$1,MATCH(VALUE(MID($L169,2,LEN($L169)-2)),設問及び配点項目!C:C,0)-1,11,1,1)=\"\",\"\",OFFSET(設問及び配点項目!$A$1,MATCH(VALUE(MID($L169,2,LEN($L169)-2)),設問及び配点項目!C:C,0)-1,11,1,1))","v":"製品含有化学物質管理体制に基づいた業務遂行の役割分担と業務手順を記載したルールがない"}]
[null,null,null,null,null,"",null,null,null,null,"",0]
[null,null,null,null,null,"規定はないが、関係部署間で合意されたルールとして明確化され、ルールに基づき業務が実施されている",null,null,null,null,"",1]
[null,null,null,null,null,"",null,null,null,null,"",2]
[null,null,null,null,null,"担当部署の役割分担及び業務手順が記載された規定と、製品含有化学物質管理体制に基づいた業務遂行状況を確認する会議体がある",null,null,null,null,"",3,null,{"$f":"IF(OFFSET(設問及び配点項目!$A$1,MATCH(VALUE(MID($L169,2,LEN($L169)-2)),設問及び配点項目!C:C,0)-1,12,1,1)=\"\",\"\",OFFSET(設問及び配点項目!$A$1,MATCH(VALUE(MID($L169,2,LEN($L169)-2)),設問及び配点項目!C:C,0)-1,12,1,1))","v":"規定はないが、関係部署間で合意されたルールとして明確化され、ルールに基づき業務が実施されている"}]
[null,null,null,null,null,"規定と業務遂行状況を確認する会議体があり、定期的に会議体を開催し、規定の見直し、改訂を行う仕組みがあり、実施されている",null,null,null,null,"",4]
[null,null,null,null,null,"規定と業務遂行状況を確認する会議体があり、定期的に会議体を開催し、運営の実態を評価、確認する仕組みがあり、評価・確認されている",null,null,null,null,"",5]
[null,null,null,"3.2.2.","NQ",null,null,null,null,null,null,"Q13."]
[null,null,null,null,null,"",null,null,null,null,{"$f":"REPT(\"a\"&CHAR(10)&\"b\",ROUNDDOWN(LEN(F178)/66,0))","v":""},"無",null,{"$f":"IF(OFFSET(設問及び配点項目!$A$1,MATCH(VALUE(MID($L177,2,LEN($L177)-2)),設問及び配点項目!C:C,0)-1,11,1,1)=\"\",\"\",OFFSET(設問及び配点項目!$A$1,MATCH(VALUE(MID($L177,2,LEN($L177)-2)),設問及び配点項目!C:C,0)-1,11,1,1))","v":""}]
[null,null,null,null,null,"",null,null,null,null,"",0]
[null,null,null,null,null,"",null,null,null,null,"",1]
[null,null,null,null,null,"",null,null,null,null,"",2]
[null,null,null,null,null,"",null,null,null,null,"",3,null,{"$f":"IF(OFFSET(設問及び配点項目!$A$1,MATCH(VALUE(MID($L177,2,LEN($L177)-2)),設問及び配点項目!C:C,0)-1,12,1,1)=\"\",\"\",OFFSET(設問及び配点項目!$A$1,MATCH(VALUE(MID($L177,2,LEN($L177)-2)),設問及び配点項目!C:C,0)-1,12,1,1))","v":""}]
[null,null,null,null,null,"",null,null,null,null,"",4]
[null,null,null,null,null,"",null,null,null,null,"",5]
[null,null,"3.3.","目標及び実施計画",null,null,null,null,null,null,null,{"$f":"D185","v":"目標及び実施計画"}]
[null,null,null,"3.3.1.","設問2.1.1の方針に基づく目標および目標達成のための実施計画の有無と、計画に基づく業務遂行状況",null,null,null,null,null,null,"Q14."]
[null,null,null,null,null,"目標および目標達成のための実施計画がない",null,null,null,null,{"$f":"REPT(\"a\"&CHAR(10)&\"b\",ROUNDDOWN(LEN(F187)/66,0))","v":""},"無",null,{"$f":"IF(OFFSET(設問及び配点項目!$A$1,MATCH(VALUE(MID($L186,2,LEN($L186)-2)),設問及び配点項目!C:C,0)-1,11,1,1)=\"\",\"\",OFFSET(設問及び配点項目!$A$1,MATCH(VALUE(MID($L186,2,LEN($L186)-2)),設問及び配点項目!C:C,0)-1,11,1,1))","v":"目標および目標達成のための実施計画がない"}]
[null,null,null,null,null,"",null,null,null,null,"",0]
[null,null,null,null,null,"方針に基づく目標はあるが、目標達成に向けた実施計画がない",null,null,null,null,"",1]
[null,null,null,null,null,"",null,null,null,null,"",2]
[null,null,null,null,null,"目標および目標達成に向けた実施計画があり、実行されている",null,null,null,null,"",3,null,{"$f":"IF(OFFSET(設問及び配点項目!$A$1,MATCH(VALUE(MID($L186,2,LEN($L186)-2)),設問及び配点項目!C:C,0)-1,12,1,1)=\"\",\"\",OFFSET(設問及び配点項目!$A$1,MATCH(VALUE(MID($L186,2,LEN($L186)-2)),設問及び配点項目!C:C,0)-1,12,1,1))","v":"方針に基づく目標はあるが、目標達成に向けた実施計画がない"}]
[null,null,null,null,null,"目標、目標達成に向けた実施計画に基づき業務が推進され、実施状況の確認、見直しがなされている",null,null,null,null,"",4]
[null,null,null,null,null,"目標、目標達成に向けた実施計画、業務遂行状況が管理され、上位への報告、承認がなされている",null,null,null,null,"",5]
[null,null,"3.4.","顧客の製品含有化学物質管理に関する仕組み",null,null,null,null,null,null,null,{"$f":"D194","v":"顧客の製品含有化学物質管理に関する仕組み"}]
[null,null,null,"3.4.1.","製品含有化学物質管理に係る各種業務（IMDS、基準、各種調査等）の自社の窓口部署、担当者情報の維持管理及び顧客への伝達の状況",null,null,null,null,null,null,"Q15."]
[null,null,null,null,null,"自社の窓口部署、担当者情報の維持管理および顧客への伝達ができていない",null,null,null,null,{"$f":"REPT(\"a\"&CHAR(10)&\"b\",ROUNDDOWN(LEN(F196)/66,0))","v":""},"無",null,{"$f":"IF(OFFSET(設問及び配点項目!$A$1,MATCH(VALUE(MID($L195,2,LEN($L195)-2)),設問及び配点項目!C:C,0)-1,11,1,1)=\"\",\"\",OFFSET(設問及び配点項目!$A$1,MATCH(VALUE(MID($L195,2,LEN($L195)-2)),設問及び配点項目!C:C,0)-1,11,1,1))","v":"自社の窓口部署、担当者情報の維持管理および顧客への伝達ができていない"}]
[null,null,null,null,null,"",null,null,null,null,"",0]
[null,null,null,null,null,"規定はないが、関係部署間で合意されたルールとして明確化され、ルールに基づき伝達している",null,null,null,null,"",1]
[null,null,null,null,null,"",null,null,null,null,"",2]
[null,null,null,null,null,"自社の窓口部署、担当者情報の顧客への伝達に関する規定があり、顧客に伝達できている",null,null,null,null,"",3,null,{"$f":"IF(OFFSET(設問及び配点項目!$A$1,MATCH(VALUE(MID($L195,2,LEN($L195)-2)),設問及び配点項目!C:C,0)-1,12,1,1)=\"\",\"\",OFFSET(設問及び配点項目!$A$1,MATCH(VALUE(MID($L195,2,LEN($L195)-2)),設問及び配点項目!C:C,0)-1,12,1,1))","v":"規定はないが、関係部署間で合意されたルールとして明確化され、ルールに基づき伝達している"}]
[null,null,null,null,null,"規定に基づき自社の窓口部署、担当者情報の変更を顧客に伝達できている",null,null,null,null,"",4]
[null,null,null,null,null,"規定に基づき自社の窓口部署、担当者情報を伝達し、伝達状況を管理できている",null,null,null,null,"",5]
[null,null,null,"3.4.2.","顧客の製品含有化学物質管理規定への対応状況",null,null,null,null,null,null,"Q16."]
[null,null,null,null,null,"顧客の製品含有化学物質管理規定に対応できていない",null,null,null,null,{"$f":"REPT(\"a\"&CHAR(10)&\"b\",ROUNDDOWN(LEN(F204)/66,0))","v":""},"無",null,{"$f":"IF(OFFSET(設問及び配点項目!$A$1,MATCH(VALUE(MID($L203,2,LEN($L203)-2)),設問及び配点項目!C:C,0)-1,11,1,1)=\"\",\"\",OFFSET(設問及び配点項目!$A$1,MATCH(VALUE(MID($L203,2,LEN($L203)-2)),設問及び配点項目!C:C,0)-1,11,1,1))","v":"顧客の製品含有化学物質管理規定に対応できていない"}]
[null,null,null,null,null,"",null,null,null,null,"",0]
[null,null,null,null,null,"顧客の製品含有化学物質管理規定は個別に対応し、社内の製品含有化学物質管理に関する規定または基準に反映していない",null,null,null,null,"",1]
[null,null,null,null,null,"",null,null,null,null,"",2]
[null,null,null,null,null,"顧客の製品含有化学物質管理規定は個別に対応し、必要に応じて社内の製品含有化学物質管理に関する規定または基準に反映している",null,null,null,null,"",3,null,{"$f":"IF(OFFSET(設問及び配点項目!$A$1,MATCH(VALUE(MID($L203,2,LEN($L203)-2)),設問及び配点項目!C:C,0)-1,12,1,1)=\"\",\"\",OFFSET(設問及び配点項目!$A$1,MATCH(VALUE(MID($L203,2,LEN($L203)-2)),設問及び配点項目!C:C,0)-1,12,1,1))","v":"顧客の製品含有化学物質管理規定は個別に対応し、社内の製品含有化学物質管理に関する規定または基準に反映していない"}]
[null,null,null,null,null,"顧客の製品含有化学物質管理規定を、社内の製品含有化学物質管理に関する規定または基準へ1回／年以上の頻度で反映している",null,null,null,null,"",4]
[null,null,null,null,null,"顧客の製品含有化学物質管理規定を、社内の製品含有化学物質管理に関する規定または基準へ反映し、適合しているか確認できている",null,null,null,null,{"$f":"REPT(\"a\"&CHAR(10)&\"b\",ROUNDDOWN(LEN(F210)/66,0))","v":""},5]
[null,null,null,"3.4.3.","NQ",null,null,null,null,null,null,"Q17."]
[null,null,null,null,null,"",null,null,null,null,{"$f":"REPT(\"a\"&CHAR(10)&\"b\",ROUNDDOWN(LEN(F212)/66,0))","v":""},"無",null,{"$f":"IF(OFFSET(設問及び配点項目!$A$1,MATCH(VALUE(MID($L211,2,LEN($L211)-2)),設問及び配点項目!C:C,0)-1,11,1,1)=\"\",\"\",OFFSET(設問及び配点項目!$A$1,MATCH(VALUE(MID($L211,2,LEN($L211)-2)),設問及び配点項目!C:C,0)-1,11,1,1))","v":""}]
[null,null,null,null,null,"",null,null,null,null,"",0]
[null,null,null,null,null,"",null,null,null,null,"",1]
[null,null,null,null,null,"",null,null,null,null,"",2]
[null,null,null,null,null,"",null,null,null,null,"",3,null,{"$f":"IF(OFFSET(設問及び配点項目!$A$1,MATCH(VALUE(MID($L211,2,LEN($L211)-2)),設問及び配点項目!C:C,0)-1,12,1,1)=\"\",\"\",OFFSET(設問及び配点項目!$A$1,MATCH(VALUE(MID($L211,2,LEN($L211)-2)),設問及び配点項目!C:C,0)-1,12,1,1))","v":""}]
[null,null,null,null,null,"",null,null,null,null,"",4]
[null,null,null,null,null,"",null,null,null,null,"",5]
[null,"4.","製品含有化学物質管理業務の運営"]
[null,null,"4.1.","設計・開発における製品含有化学物質管理",null,null,null,null,null,null,null,{"$f":"D220","v":"設計・開発における製品含有化学物質管理"}]
[null,null,null,"4.1.1.","業務管理規定の有無と、規定に基づく業務遂行・管理状況",null,null,null,null,null,null,"Q18."]
[null,null,null,null,null,"業務管理規定がない",null,null,null,null,{"$f":"REPT(\"a\"&CHAR(10)&\"b\",ROUNDDOWN(LEN(F222)/66,0))","v":""},"無",null,{"$f":"IF(OFFSET(設問及び配点項目!$A$1,MATCH(VALUE(MID($L221,2,LEN($L221)-2)),設問及び配点項目!C:C,0)-1,11,1,1)=\"\",\"\",OFFSET(設問及び配点項目!$A$1,MATCH(VALUE(MID($L221,2,LEN($L221)-2)),設問及び配点項目!C:C,0)-1,11,1,1))","v":"業務管理規定がない"}]
[null,null,null,null,null,"",null,null,null,null,"",0]
[null,null,null,null,null,"規定はないが、関係部署間で合意されたルールがあり、その内容に基づき業務を遂行している",null,null,null,null,"",1]
[null,null,null,null,null,"",null,null,null,null,"",2]
[null,null,null,null,null,"規定があり、規定に基づき業務が遂行されている",null,null,null,null,"",3,null,{"$f":"IF(OFFSET(設問及び配点項目!$A$1,MATCH(VALUE(MID($L221,2,LEN($L221)-2)),設問及び配点項目!C:C,0)-1,12,1,1)=\"\",\"\",OFFSET(設問及び配点項目!$A$1,MATCH(VALUE(MID($L221,2,LEN($L221)-2)),設問及び配点項目!C:C,0)-1,12,1,1))","v":"規定はないが、関係部署間で合意されたルールがあり、その内容に基づき業務を遂行している"}]
[null,null,null,null,null,"規定に基づき業務が遂行されており、上記の規定の維持管理、見直しの仕組みがあり、常に最新状態の業務規定を業務に適用している",null,null,null,null,"",4]
[null,null,null,null,null,"最新状態の規定に基づいて業務が漏れなく実施され、業務遂行状況を組織内で管理する仕組みがあり、実行されている",null,null,null,null,"",5]
[null,null,"4.2.","部品・材料の購入、受け入れ時における製品含有化学物質管理",null,null,null,null,null,null,null,{"$f":"D229","v":"部品・材料の購入、受け入れ時における製品含有化学物質管理"}]
[null,null,null,"4.2.1.","製品含有化学物質情報の仕入先からの入手・確認に関する規定の有無と規定に基づく業務遂行状況",null,null,null,null,null,null,"Q19."]
[null,null,null,null,null,"仕入先から製品含有化学物質情報を入手・確認する規定がない",null,null,null,null,{"$f":"REPT(\"a\"&CHAR(10)&\"b\",ROUNDDOWN(LEN(F231)/66,0))","v":""},"無",null,{"$f":"IF(OFFSET(設問及び配点項目!$A$1,MATCH(VALUE(MID($L230,2,LEN($L230)-2)),設問及び配点項目!C:C,0)-1,11,1,1)=\"\",\"\",OFFSET(設問及び配点項目!$A$1,MATCH(VALUE(MID($L230,2,LEN($L230)-2)),設問及び配点項目!C:C,0)-1,11,1,1))","v":"仕入先から製品含有化学物質情報を入手・確認する規定がない"}]
[null,null,null,null,null,"",null,null,null,null,"",0]
[null,null,null,null,null,"規定はないが、関係部署間で合意されたルールがあり、その内容に基づき業務を遂行している",null,null,null,null,"",1]
[null,null,null,null,null,"",null,null,null,null,"",2]
[null,null,null,null,null,"規定の中で管理すべき部品・材料について、情報の入手・確認・管理の担当者と方法が文書化され、規定に基づき業務が遂行されている",null,null,null,null,"",3,null,{"$f":"IF(OFFSET(設問及び配点項目!$A$1,MATCH(VALUE(MID($L230,2,LEN($L230)-2)),設問及び配点項目!C:C,0)-1,12,1,1)=\"\",\"\",OFFSET(設問及び配点項目!$A$1,MATCH(VALUE(MID($L230,2,LEN($L230)-2)),設問及び配点項目!C:C,0)-1,12,1,1))","v":"規定はないが、関係部署間で合意されたルールがあり、その内容に基づき業務を遂行している"}]
[null,null,null,null,null,"規定に基づき業務が遂行されており、上記の規定の維持管理、見直しの仕組みがあり、常に最新状態の業務規定を業務に適用している",null,null,null,null,"",4]
[null,null,null,null,null,"最新状態の規定に基づいて業務が漏れなく実施され、業務遂行状況を組織内で管理する仕組みがあり、実行されている",null,null,null,null,"",5]
[null,null,null,"4.2.2.","初品/日常受け入れ時における製品含有化学物質管理に関する規定の有無と規定に基づく業務遂行状況",null,null,null,null,null,null,"Q20."]
[null,null,null,null,null,"初品/日常受け入れ時における製品含有化学物質管理に関する規定がない",null,null,null,null,{"$f":"REPT(\"a\"&CHAR(10)&\"b\",ROUNDDOWN(LEN(F239)/66,0))","v":""},"無",null,{"$f":"IF(OFFSET(設問及び配点項目!$A$1,MATCH(VALUE(MID($L238,2,LEN($L238)-2)),設問及び配点項目!C:C,0)-1,11,1,1)=\"\",\"\",OFFSET(設問及び配点項目!$A$1,MATCH(VALUE(MID($L238,2,LEN($L238)-2)),設問及び配点項目!C:C,0)-1,11,1,1))","v":"初品/日常受け入れ時における製品含有化学物質管理に関する規定がない"}]
[null,null,null,null,null,"",null,null,null,null,"",0]
[null,null,null,null,null,"規定はないが、関係部署間で合意されたルールがあり、その内容に基づき業務を遂行している",null,null,null,null,"",1]
[null,null,null,null,null,"",null,null,null,null,"",2]
[null,null,null,null,null,"規定の中で、仕入先からの初品/日常受け入れ時に、製品含有化学物質に関わる管理の仕組みが文書化され、規定に基づき業務が遂行されている",null,null,null,null,"",3,null,{"$f":"IF(OFFSET(設問及び配点項目!$A$1,MATCH(VALUE(MID($L238,2,LEN($L238)-2)),設問及び配点項目!C:C,0)-1,12,1,1)=\"\",\"\",OFFSET(設問及び配点項目!$A$1,MATCH(VALUE(MID($L238,2,LEN($L238)-2)),設問及び配点項目!C:C,0)-1,12,1,1))","v":"規定はないが、関係部署間で合意されたルールがあり、その内容に基づき業務を遂行している"}]
[null,null,null,null,null,"規定に基づき業務が遂行されており、上記の規定の維持管理、見直しの仕組みがあり、常に最新状態の業務規定を業務に適用している",null,null,null,null,"",4]
[null,null,null,null,null,"最新状態の規定に基づいて業務が漏れなく実施され、業務遂行状況を組織内で管理する仕組みがあり、実行されている",null,null,null,null,"",5]
[null,null,"4.3.","自社内の製造工程における製品含有化学物質管理",null,null,null,null,null,null,null,{"$f":"D246","v":"自社内の製造工程における製品含有化学物質管理"}]
[null,null,null,"4.3.1.","製造工程における管理基準が記載された規定の有無と規定に基づく業務遂行状況",null,null,null,null,null,null,"Q21."]
[null,null,null,null,null,"製造工程における管理基準が記載された規定がない",null,null,null,null,{"$f":"REPT(\"a\"&CHAR(10)&\"b\",ROUNDDOWN(LEN(F248)/66,0))","v":""},"無",null,{"$f":"IF(OFFSET(設問及び配点項目!$A$1,MATCH(VALUE(MID($L247,2,LEN($L247)-2)),設問及び配点項目!C:C,0)-1,11,1,1)=\"\",\"\",OFFSET(設問及び配点項目!$A$1,MATCH(VALUE(MID($L247,2,LEN($L247)-2)),設問及び配点項目!C:C,0)-1,11,1,1))","v":"製造工程における管理基準が記載された規定がない"}]
[null,null,null,null,null,"",null,null,null,null,"",0]
[null,null,null,null,null,"規定はないが、関係部署間で合意されたルールがあり、その内容に基づき業務を遂行している",null,null,null,null,"",1]
[null,null,null,null,null,"",null,null,null,null,"",2]
[null,null,null,null,null,"規定があり、その規定に基づき業務が遂行されている",null,null,null,null,"",3,null,{"$f":"IF(OFFSET(設問及び配点項目!$A$1,MATCH(VALUE(MID($L247,2,LEN($L247)-2)),設問及び配点項目!C:C,0)-1,12,1,1)=\"\",\"\",OFFSET(設問及び配点項目!$A$1,MATCH(VALUE(MID($L247,2,LEN($L247)-2)),設問及び配点項目!C:C,0)-1,12,1,1))","v":"規定はないが、関係部署間で合意されたルールがあり、その内容に基づき業務を遂行している"}]
[null,null,null,null,null,"規定に基づき業務が遂行されており、上記の規定の維持管理、見直しの仕組みがあり、常に最新状態の業務規定を業務に適用している",null,null,null,null,"",4]
[null,null,null,null,null,"最新状態の規定に基づいて業務が漏れなく実施され、業務遂行状況を組織内で管理する仕組みがあり、実行されている",null,null,null,null,"",5]
[null,null,null,"4.3.2.","変換工程（酸化反応、還元反応などによる化学物質の組成変化、濃縮、蒸発などによる化学物質の濃度変化が発生する製造工程）\n を伴う製品に関する管理規定の有無と規定に基づく業務遂行状況",null,null,null,null,null,{"$f":"REPT(\"a\"&CHAR(10)&\"b\",ROUNDDOWN(LEN(E255)/66,0))","v":"a\nb"},"Q22."]
[null,null,null,null,null,"変換工程を伴う製品に関する管理規定がない",null,null,null,null,{"$f":"REPT(\"a\"&CHAR(10)&\"b\",ROUNDDOWN(LEN(F256)/66,0))","v":""},"無",null,{"$f":"IF(OFFSET(設問及び配点項目!$A$1,MATCH(VALUE(MID($L255,2,LEN($L255)-2)),設問及び配点項目!C:C,0)-1,11,1,1)=\"\",\"\",OFFSET(設問及び配点項目!$A$1,MATCH(VALUE(MID($L255,2,LEN($L255)-2)),設問及び配点項目!C:C,0)-1,11,1,1))","v":"変換工程を伴う製品に関する管理規定がない"}]
[null,null,null,null,null,"",null,null,null,null,"",0]
[null,null,null,null,null,"規定はないが、関係部署間で合意されたルールがあり、その内容に基づき業務を遂行している",null,null,null,null,"",1]
[null,null,null,null,null,"",null,null,null,null,"",2]
[null,null,null,null,null,"規定があり、その規定に基づき業務が遂行されている",null,null,null,null,"",3,null,{"$f":"IF(OFFSET(設問及び配点項目!$A$1,MATCH(VALUE(MID($L255,2,LEN($L255)-2)),設問及び配点項目!C:C,0)-1,12,1,1)=\"\",\"\",OFFSET(設問及び配点項目!$A$1,MATCH(VALUE(MID($L255,2,LEN($L255)-2)),設問及び配点項目!C:C,0)-1,12,1,1))","v":"規定はないが、関係部署間で合意されたルールがあり、その内容に基づき業務を遂行している"}]
[null,null,null,null,null,"規定に基づき業務が遂行されており、上記の規定の維持管理、見直しの仕組みがあり、常に最新状態の業務規定を業務に適用している",null,null,null,null,"",4]
[null,null,null,null,null,"最新状態の規定に基づいて業務が漏れなく実施され、業務遂行状況を組織内で管理する仕組みがあり、実行されている",null,null,null,null,"",5]
[null,null,null,"4.3.3.","トレーサビリティに関する業務管理規定の有無と規定に基づく業務遂行状況",null,null,null,null,null,null,"Q23."]
[null,null,null,null,null,"トレーサビリティに関する業務管理の規定がない",null,null,null,null,{"$f":"REPT(\"a\"&CHAR(10)&\"b\",ROUNDDOWN(LEN(F264)/66,0))","v":""},"無",null,{"$f":"IF(OFFSET(設問及び配点項目!$A$1,MATCH(VALUE(MID($L263,2,LEN($L263)-2)),設問及び配点項目!C:C,0)-1,11,1,1)=\"\",\"\",OFFSET(設問及び配点項目!$A$1,MATCH(VALUE(MID($L263,2,LEN($L263)-2)),設問及び配点項目!C:C,0)-1,11,1,1))","v":"トレーサビリティに関する業務管理の規定がない"}]
[null,null,null,null,null,"",null,null,null,null,"",0]
[null,null,null,null,null,"規定はないが、関係部署間で合意されたルールがあり、その内容に基づき業務を遂行している",null,null,null,null,"",1]
[null,null,null,null,null,"",null,null,null,null,"",2]
[null,null,null,null,null,"規定があり、その規定に基づき業務が遂行されている",null,null,null,null,"",3,null,{"$f":"IF(OFFSET(設問及び配点項目!$A$1,MATCH(VALUE(MID($L263,2,LEN($L263)-2)),設問及び配点項目!C:C,0)-1,12,1,1)=\"\",\"\",OFFSET(設問及び配点項目!$A$1,MATCH(VALUE(MID($L263,2,LEN($L263)-2)),設問及び配点項目!C:C,0)-1,12,1,1))","v":"規定はないが、関係部署間で合意されたルールがあり、その内容に基づき業務を遂行している"}]
[null,null,null,null,null,"規定に基づき業務が遂行されており、上記の規定の維持管理、見直しの仕組みがあり、常に最新状態の業務規定を業務に適用している",null,null,null,null,"",4]
[null,null,null,null,null,"最新状態の規定に基づいて業務が漏れなく実施され、業務遂行状況を組織内で管理する仕組みがあり、実行されている",null,null,null,null,"",5]
[null,null,null,"4.3.4.","工程・材料変更、工程異常（誤使用・異物混入含む）に対する管理基準･規定の有無と規定に基づく業務遂行状況",null,null,null,null,null,null,"Q24."]
[null,null,null,null,null,"工程・材料変更、工程異常（誤使用・異物混入含む）に対する管理基準が記載された規定がない",null,null,null,null,{"$f":"REPT(\"a\"&CHAR(10)&\"b\",ROUNDDOWN(LEN(F272)/66,0))","v":""},"無",null,{"$f":"IF(OFFSET(設問及び配点項目!$A$1,MATCH(VALUE(MID($L271,2,LEN($L271)-2)),設問及び配点項目!C:C,0)-1,11,1,1)=\"\",\"\",OFFSET(設問及び配点項目!$A$1,MATCH(VALUE(MID($L271,2,LEN($L271)-2)),設問及び配点項目!C:C,0)-1,11,1,1))","v":"工程・材料変更、工程異常（誤使用・異物混入含む）に対する管理基準が記載された規定がない"}]
[null,null,null,null,null,"",null,null,null,null,"",0]
[null,null,null,null,null,"規定はないが、関係部署間で合意されたルールがあり、その内容に基づき業務を遂行している",null,null,null,null,"",1]
[null,null,null,null,null,"",null,null,null,null,"",2]
[null,null,null,null,null,"規定があり、その規定に基づき業務が遂行されている",null,null,null,null,"",3,null,{"$f":"IF(OFFSET(設問及び配点項目!$A$1,MATCH(VALUE(MID($L271,2,LEN($L271)-2)),設問及び配点項目!C:C,0)-1,12,1,1)=\"\",\"\",OFFSET(設問及び配点項目!$A$1,MATCH(VALUE(MID($L271,2,LEN($L271)-2)),設問及び配点項目!C:C,0)-1,12,1,1))","v":"規定はないが、関係部署間で合意されたルールがあり、その内容に基づき業務を遂行している"}]
[null,null,null,null,null,"規定に基づき業務が遂行されており、上記の規定の維持管理、見直しの仕組みがあり、常に最新状態の業務規定を業務に適用している",null,null,null,null,"",4]
[null,null,null,null,null,"最新状態の規定に基づいて業務が漏れなく実施され、業務遂行状況を組織内で管理する仕組みがあり、実行されている",null,null,null,null,"",5]
[null,null,"4.4.","自社内の出荷工程における製品含有化学物質管理",null,null,null,null,null,null,null,{"$f":"D279","v":"自社内の出荷工程における製品含有化学物質管理"}]
[null,null,null,"4.4.1.","出荷工程における業務手順・規定の有無と規定に基づく業務遂行状況",null,null,null,null,null,null,"Q25."]
[null,null,null,null,null,"出荷工程における業務手順・管理基準がない",null,null,null,null,{"$f":"REPT(\"a\"&CHAR(10)&\"b\",ROUNDDOWN(LEN(F281)/66,0))","v":""},"無",null,{"$f":"IF(OFFSET(設問及び配点項目!$A$1,MATCH(VALUE(MID($L280,2,LEN($L280)-2)),設問及び配点項目!C:C,0)-1,11,1,1)=\"\",\"\",OFFSET(設問及び配点項目!$A$1,MATCH(VALUE(MID($L280,2,LEN($L280)-2)),設問及び配点項目!C:C,0)-1,11,1,1))","v":"出荷工程における業務手順・管理基準がない"}]
[null,null,null,null,null,"",null,null,null,null,"",0]
[null,null,null,null,null,"規定はないが、関係部署間で合意されたルールがあり、その内容に基づき業務を遂行している",null,null,null,null,"",1]
[null,null,null,null,null,"",null,null,null,null,"",2]
[null,null,null,null,null,"規定があり、その規定に基づき業務が遂行されている",null,null,null,null,"",3,null,{"$f":"IF(OFFSET(設問及び配点項目!$A$1,MATCH(VALUE(MID($L280,2,LEN($L280)-2)),設問及び配点項目!C:C,0)-1,12,1,1)=\"\",\"\",OFFSET(設問及び配点項目!$A$1,MATCH(VALUE(MID($L280,2,LEN($L280)-2)),設問及び配点項目!C:C,0)-1,12,1,1))","v":"規定はないが、関係部署間で合意されたルールがあり、その内容に基づき業務を遂行している"}]
[null,null,null,null,null,"規定に基づき業務が遂行されており、上記の規定の維持管理、見直しの仕組みがあり、常に最新状態の業務規定を業務に適用している",null,null,null,null,"",4]
[null,null,null,null,null,"最新状態の規定に基づいて業務が漏れなく実施され、業務遂行状況を組織内で管理する仕組みがあり、実行されている",null,null,null,null,"",5]
[null,null,null,"4.4.2.","NQ",null,null,null,null,null,null,"Q26."]
[null,null,null,null,null,"",null,null,null,null,{"$f":"REPT(\"a\"&CHAR(10)&\"b\",ROUNDDOWN(LEN(F289)/66,0))","v":""},"無",null,{"$f":"IF(OFFSET(設問及び配点項目!$A$1,MATCH(VALUE(MID($L288,2,LEN($L288)-2)),設問及び配点項目!C:C,0)-1,11,1,1)=\"\",\"\",OFFSET(設問及び配点項目!$A$1,MATCH(VALUE(MID($L288,2,LEN($L288)-2)),設問及び配点項目!C:C,0)-1,11,1,1))","v":""}]
[null,null,null,null,null,"",null,null,null,null,"",0]
[null,null,null,null,null,"",null,null,null,null,"",1]
[null,null,null,null,null,"",null,null,null,null,"",2]
[null,null,null,null,null,"",null,null,null,null,"",3,null,{"$f":"IF(OFFSET(設問及び配点項目!$A$1,MATCH(VALUE(MID($L288,2,LEN($L288)-2)),設問及び配点項目!C:C,0)-1,12,1,1)=\"\",\"\",OFFSET(設問及び配点項目!$A$1,MATCH(VALUE(MID($L288,2,LEN($L288)-2)),設問及び配点項目!C:C,0)-1,12,1,1))","v":""}]
[null,null,null,null,null,"",null,null,null,null,"",4]
[null,null,null,null,null,"",null,null,null,null,"",5]
[null,null,null,"4.4.3.","NQ",null,null,null,null,null,null,"Q27."]
[null,null,null,null,null,"",null,null,null,null,{"$f":"REPT(\"a\"&CHAR(10)&\"b\",ROUNDDOWN(LEN(F297)/66,0))","v":""},"無",null,{"$f":"IF(OFFSET(設問及び配点項目!$A$1,MATCH(VALUE(MID($L296,2,LEN($L296)-2)),設問及び配点項目!C:C,0)-1,11,1,1)=\"\",\"\",OFFSET(設問及び配点項目!$A$1,MATCH(VALUE(MID($L296,2,LEN($L296)-2)),設問及び配点項目!C:C,0)-1,11,1,1))","v":""}]
[null,null,null,null,null,"",null,null,null,null,"",0]
[null,null,null,null,null,"",null,null,null,null,"",1]
[null,null,null,null,null,"",null,null,null,null,"",2]
[null,null,null,null,null,"",null,null,null,null,"",3,null,{"$f":"IF(OFFSET(設問及び配点項目!$A$1,MATCH(VALUE(MID($L296,2,LEN($L296)-2)),設問及び配点項目!C:C,0)-1,12,1,1)=\"\",\"\",OFFSET(設問及び配点項目!$A$1,MATCH(VALUE(MID($L296,2,LEN($L296)-2)),設問及び配点項目!C:C,0)-1,12,1,1))","v":""}]
[null,null,null,null,null,"",null,null,null,null,"",4]
[null,null,null,null,null,"",null,null,null,null,"",5]
[null,null,"4.5.","仕入れ先管理",null,null,null,null,null,null,null,{"$f":"D304","v":"仕入れ先管理"}]
[null,null,null,"4.5.1.","仕入先に対する製品含有化学物質の管理要求事項提示の仕組みの有無と実態",null,null,null,null,null,null,"Q28."]
[null,null,null,null,null,"仕入先に対して製品含有化学物質の管理要求事項を提示する仕組みがない",null,null,null,null,{"$f":"REPT(\"a\"&CHAR(10)&\"b\",ROUNDDOWN(LEN(F306)/66,0))","v":""},"無",null,{"$f":"IF(OFFSET(設問及び配点項目!$A$1,MATCH(VALUE(MID($L305,2,LEN($L305)-2)),設問及び配点項目!C:C,0)-1,11,1,1)=\"\",\"\",OFFSET(設問及び配点項目!$A$1,MATCH(VALUE(MID($L305,2,LEN($L305)-2)),設問及び配点項目!C:C,0)-1,11,1,1))","v":"仕入先に対して製品含有化学物質の管理要求事項を提示する仕組みがない"}]
[null,null,null,null,null,"",null,null,null,null,"",0]
[null,null,null,null,null,"規定はないが、関係部署間で合意された仕組みがあり、その内容に基づき業務を遂行している",null,null,null,null,"",1]
[null,null,null,null,null,"",null,null,null,null,"",2]
[null,null,null,null,null,"規定があり、その規定に基づき業務が遂行されている",null,null,null,null,"",3,null,{"$f":"IF(OFFSET(設問及び配点項目!$A$1,MATCH(VALUE(MID($L305,2,LEN($L305)-2)),設問及び配点項目!C:C,0)-1,12,1,1)=\"\",\"\",OFFSET(設問及び配点項目!$A$1,MATCH(VALUE(MID($L305,2,LEN($L305)-2)),設問及び配点項目!C:C,0)-1,12,1,1))","v":"規定はないが、関係部署間で合意された仕組みがあり、その内容に基づき業務を遂行している"}]
[null,null,null,null,null,"規定に基づき業務が遂行されており、上記の規定の維持管理、見直しの仕組みがあり、常に最新状態の業務規定を業務に適用している",null,null,null,null,"",4]
[null,null,null,null,null,"最新状態の規定に基づいて業務が漏れなく実施され、業務遂行状況を組織内で管理する仕組みがあり、実行されている",null,null,null,null,"",5]
[null,null,null,"4.5.2.","仕入先における製品含有化学物質管理体制の確認に関する規定の有無と規定に基づく業務遂行状況",null,null,null,null,null,null,"Q29."]
[null,null,null,null,null,"仕入先の製品含有化学物質管理体制を確認する仕組みがない",null,null,null,null,{"$f":"REPT(\"a\"&CHAR(10)&\"b\",ROUNDDOWN(LEN(F314)/66,0))","v":""},"無",null,{"$f":"IF(OFFSET(設問及び配点項目!$A$1,MATCH(VALUE(MID($L313,2,LEN($L313)-2)),設問及び配点項目!C:C,0)-1,11,1,1)=\"\",\"\",OFFSET(設問及び配点項目!$A$1,MATCH(VALUE(MID($L313,2,LEN($L313)-2)),設問及び配点項目!C:C,0)-1,11,1,1))","v":"仕入先の製品含有化学物質管理体制を確認する仕組みがない"}]
[null,null,null,null,null,"",null,null,null,null,"",0]
[null,null,null,null,null,"規定はないが、関係部署間で合意された仕組みがあり、その内容に基づき業務を遂行している",null,null,null,null,"",1]
[null,null,null,null,null,"",null,null,null,null,"",2]
[null,null,null,null,null,"規定があり、その規定に基づき業務が遂行されている",null,null,null,null,"",3,null,{"$f":"IF(OFFSET(設問及び配点項目!$A$1,MATCH(VALUE(MID($L313,2,LEN($L313)-2)),設問及び配点項目!C:C,0)-1,12,1,1)=\"\",\"\",OFFSET(設問及び配点項目!$A$1,MATCH(VALUE(MID($L313,2,LEN($L313)-2)),設問及び配点項目!C:C,0)-1,12,1,1))","v":"規定はないが、関係部署間で合意された仕組みがあり、その内容に基づき業務を遂行している"}]
[null,null,null,null,null,"規定に基づき業務が遂行されており、上記の規定の維持管理、見直しの仕組みがあり、常に最新状態の業務規定を業務に適用している",null,null,null,null,"",4]
[null,null,null,null,null,"全ての仕入れ先に対し規定に従って定期的な管理状況の確認とエビデンスの確保、双方の組織トップマネジメントを含めた確認、実情に応じた改善活動を行っている",null,null,null,null,"a\nb",5]
[null,null,"4.6.","その他自社内の各工程の製品含有化学物質管理における留意事項",null,null,null,null,null,null,null,{"$f":"D321","v":"その他自社内の各工程の製品含有化学物質管理における留意事項"}]
[null,null,null,"4.6.1.","異常・不適合品発生時の手順・ルールの有無とルールに基づく業務遂行状況",null,null,null,null,null,null,"Q30."]
[null,null,null,null,null,"異常・ 不適合品発生時の対処手順・ルールがない",null,null,null,null,{"$f":"REPT(\"a\"&CHAR(10)&\"b\",ROUNDDOWN(LEN(F323)/66,0))","v":""},"無",null,{"$f":"IF(OFFSET(設問及び配点項目!$A$1,MATCH(VALUE(MID($L322,2,LEN($L322)-2)),設問及び配点項目!C:C,0)-1,11,1,1)=\"\",\"\",OFFSET(設問及び配点項目!$A$1,MATCH(VALUE(MID($L322,2,LEN($L322)-2)),設問及び配点項目!C:C,0)-1,11,1,1))","v":"異常・ 不適合品発生時の対処手順・ルールがない"}]
[null,null,null,null,null,"",null,null,null,null,"",0]
[null,null,null,null,null,"規定はないが、関係部署間で合意されたルールがあり、その内容に基づき業務を遂行している",null,null,null,null,"",1]
[null,null,null,null,null,"",null,null,null,null,"",2]
[null,null,null,null,null,"規定があり、その規定に基づき業務が遂行されている",null,null,null,null,"",3,null,{"$f":"IF(OFFSET(設問及び配点項目!$A$1,MATCH(VALUE(MID($L322,2,LEN($L322)-2)),設問及び配点項目!C:C,0)-1,12,1,1)=\"\",\"\",OFFSET(設問及び配点項目!$A$1,MATCH(VALUE(MID($L322,2,LEN($L322)-2)),設問及び配点項目!C:C,0)-1,12,1,1))","v":"規定はないが、関係部署間で合意されたルールがあり、その内容に基づき業務を遂行している"}]
[null,null,null,null,null,"規定に基づき業務が遂行されており、上記の規定の維持管理、見直しの仕組みがあり、常に最新状態の業務規定を業務に適用している",null,null,null,null,"",4]
[null,null,null,null,null,"最新状態の規定に基づく業務が漏れなく実施されており、その状況が確認・評価され、上位に報告、管理する仕組みがあり、実行されている",null,null,null,null,"",5]
[null,null,null,"4.6.2.","再発防止、水平展開を行う仕組みの有無と業務遂行状況",null,null,null,null,null,null,"Q31."]
[null,null,null,null,null,"再発防止、水平展開を行う仕組みがない",null,null,null,null,{"$f":"REPT(\"a\"&CHAR(10)&\"b\",ROUNDDOWN(LEN(F331)/66,0))","v":""},"無",null,{"$f":"IF(OFFSET(設問及び配点項目!$A$1,MATCH(VALUE(MID($L330,2,LEN($L330)-2)),設問及び配点項目!C:C,0)-1,11,1,1)=\"\",\"\",OFFSET(設問及び配点項目!$A$1,MATCH(VALUE(MID($L330,2,LEN($L330)-2)),設問及び配点項目!C:C,0)-1,11,1,1))","v":"再発防止、水平展開を行う仕組みがない"}]
[null,null,null,null,null,"",null,null,null,null,"",0]
[null,null,null,null,null,"規定はないが、関係部署間での合意された仕組みがあり、業務が遂行されている",null,null,null,null,"",1]
[null,null,null,null,null,"",null,null,null,null,"",2]
[null,null,null,null,null,"規定があり、その規定に基づく対応が行われている",null,null,null,null,"",3,null,{"$f":"IF(OFFSET(設問及び配点項目!$A$1,MATCH(VALUE(MID($L330,2,LEN($L330)-2)),設問及び配点項目!C:C,0)-1,12,1,1)=\"\",\"\",OFFSET(設問及び配点項目!$A$1,MATCH(VALUE(MID($L330,2,LEN($L330)-2)),設問及び配点項目!C:C,0)-1,12,1,1))","v":"規定はないが、関係部署間での合意された仕組みがあり、業務が遂行されている"}]
[null,null,null,null,null,"規定に基づき業務が遂行されており、その規定の維持管理、見直しの仕組みがあり、常に最新状態のルールを業務に適用している",null,null,null,null,"",4]
[null,null,null,null,null,"最新状態の規定に基づく業務が漏れなく実施されており、その状況が確認・評価され、上位に報告、管理する仕組みがあり、実行されている",null,null,null,null,"",5]
[null,null,null,"4.6.3.","NQ",null,null,null,null,null,null,"Q32."]
[null,null,null,null,null,"",null,null,null,null,{"$f":"REPT(\"a\"&CHAR(10)&\"b\",ROUNDDOWN(LEN(F339)/66,0))","v":""},"無",null,{"$f":"IF(OFFSET(設問及び配点項目!$A$1,MATCH(VALUE(MID($L338,2,LEN($L338)-2)),設問及び配点項目!C:C,0)-1,11,1,1)=\"\",\"\",OFFSET(設問及び配点項目!$A$1,MATCH(VALUE(MID($L338,2,LEN($L338)-2)),設問及び配点項目!C:C,0)-1,11,1,1))","v":""}]
[null,null,null,null,null,"",null,null,null,null,"",0]
[null,null,null,null,null,"",null,null,null,null,"",1]
[null,null,null,null,null,"",null,null,null,null,"",2]
[null,null,null,null,null,"",null,null,null,null,"",3,null,{"$f":"IF(OFFSET(設問及び配点項目!$A$1,MATCH(VALUE(MID($L338,2,LEN($L338)-2)),設問及び配点項目!C:C,0)-1,12,1,1)=\"\",\"\",OFFSET(設問及び配点項目!$A$1,MATCH(VALUE(MID($L338,2,LEN($L338)-2)),設問及び配点項目!C:C,0)-1,12,1,1))","v":""}]
[null,null,null,null,null,"",null,null,null,null,"",4]
[null,null,null,null,null,"",null,null,null,null,"",5]
[null,null,null,"4.6.4.","NQ",null,null,null,null,null,null,"Q33."]
[null,null,null,null,null,"",null,null,null,null,{"$f":"REPT(\"a\"&CHAR(10)&\"b\",ROUNDDOWN(LEN(F347)/66,0))","v":""},"無",null,{"$f":"IF(OFFSET(設問及び配点項目!$A$1,MATCH(VALUE(MID($L346,2,LEN($L346)-2)),設問及び配点項目!C:C,0)-1,11,1,1)=\"\",\"\",OFFSET(設問及び配点項目!$A$1,MATCH(VALUE(MID($L346,2,LEN($L346)-2)),設問及び配点項目!C:C,0)-1,11,1,1))","v":""}]
[null,null,null,null,null,"",null,null,null,null,"",0]
[null,null,null,null,null,"",null,null,null,null,"",1]
[null,null,null,null,null,"",null,null,null,null,"",2]
[null,null,null,null,null,"",null,null,null,null,"",3,null,{"$f":"IF(OFFSET(設問及び配点項目!$A$1,MATCH(VALUE(MID($L346,2,LEN($L346)-2)),設問及び配点項目!C:C,0)-1,12,1,1)=\"\",\"\",OFFSET(設問及び配点項目!$A$1,MATCH(VALUE(MID($L346,2,LEN($L346)-2)),設問及び配点項目!C:C,0)-1,12,1,1))","v":""}]
[null,null,null,null,null,"",null,null,null,null,"",4]
[null,null,null,null,null,"",null,null,null,null,"",5]
[null,null,null,"4.6.5.","NQ",null,null,null,null,null,null,"Q34."]
[null,null,null,null,null,"",null,null,null,null,{"$f":"REPT(\"a\"&CHAR(10)&\"b\",ROUNDDOWN(LEN(F355)/66,0))","v":""},"無",null,{"$f":"IF(OFFSET(設問及び配点項目!$A$1,MATCH(VALUE(MID($L354,2,LEN($L354)-2)),設問及び配点項目!C:C,0)-1,11,1,1)=\"\",\"\",OFFSET(設問及び配点項目!$A$1,MATCH(VALUE(MID($L354,2,LEN($L354)-2)),設問及び配点項目!C:C,0)-1,11,1,1))","v":""}]
[null,null,null,null,null,"",null,null,null,null,"",0]
[null,null,null,null,null,"",null,null,null,null,"",1]
[null,null,null,null,null,"",null,null,null,null,"",2]
[null,null,null,null,null,"",null,null,null,null,"",3,null,{"$f":"IF(OFFSET(設問及び配点項目!$A$1,MATCH(VALUE(MID($L354,2,LEN($L354)-2)),設問及び配点項目!C:C,0)-1,12,1,1)=\"\",\"\",OFFSET(設問及び配点項目!$A$1,MATCH(VALUE(MID($L354,2,LEN($L354)-2)),設問及び配点項目!C:C,0)-1,12,1,1))","v":""}]
[null,null,null,null,null,"",null,null,null,null,"",4]
[null,null,null,null,null,"",null,null,null,null,"",5]
[null,"5.","化学物質情報・データ管理及び適合確認業務運営"]
[null,null,"5.1.","全体運用",null,null,null,null,null,null,null,{"$f":"D363","v":"全体運用"}]
[null,null,null,"5.1.1.","製品含有化学物質管理に関わるデータ管理及び適合確認業務全体の運用に関わる規定の有無と業務遂行状況",null,null,null,null,null,null,"Q35."]
[null,null,null,null,null,"製品含有化学物質データの管理及び適合確認業務全体の運用に関わる仕組みがない",null,null,null,null,{"$f":"REPT(\"a\"&CHAR(10)&\"b\",ROUNDDOWN(LEN(F365)/66,0))","v":""},"無",null,{"$f":"IF(OFFSET(設問及び配点項目!$A$1,MATCH(VALUE(MID($L364,2,LEN($L364)-2)),設問及び配点項目!C:C,0)-1,11,1,1)=\"\",\"\",OFFSET(設問及び配点項目!$A$1,MATCH(VALUE(MID($L364,2,LEN($L364)-2)),設問及び配点項目!C:C,0)-1,11,1,1))","v":"製品含有化学物質データの管理及び適合確認業務全体の運用に関わる仕組みがない"}]
[null,null,null,null,null,"",null,null,null,null,"",0]
[null,null,null,null,null,"規定はないが、関係部署間で合意された仕組みがあり、その内容に基づき業務を遂行している",null,null,null,null,"",1]
[null,null,null,null,null,"",null,null,null,null,"",2]
[null,null,null,null,null,"規定があり、その規定に基づき業務が遂行されている",null,null,null,null,"",3,null,{"$f":"IF(OFFSET(設問及び配点項目!$A$1,MATCH(VALUE(MID($L364,2,LEN($L364)-2)),設問及び配点項目!C:C,0)-1,12,1,1)=\"\",\"\",OFFSET(設問及び配点項目!$A$1,MATCH(VALUE(MID($L364,2,LEN($L364)-2)),設問及び配点項目!C:C,0)-1,12,1,1))","v":"規定はないが、関係部署間で合意された仕組みがあり、その内容に基づき業務を遂行している"}]
[null,null,null,null,null,"規定に基づき業務が遂行されており、上記の規定の維持管理、見直しの仕組みがあり、常に最新状態の業務規定を業務に適用している",null,null,null,null,"",4]
[null,null,null,null,null,"規定に基づく業務遂行が漏れなく実施されており、業務遂行状況を組織内で管理する仕組みがあり、実行されている",null,null,null,null,"",5]
[null,null,"5.2.","仕入れ先からのデータ入手と入手データの確認",null,null,null,null,null,null,null,{"$f":"D372","v":"仕入れ先からのデータ入手と入手データの確認"}]
[null,null,null,"5.2.1.","仕入れ先とのデータ授受（提出依頼、入手）に関するルールの有無と、ルールに基づく業務遂行状況",null,null,null,null,null,null,"Q36."]
[null,null,null,null,null,"仕入れ先とのデータ授受（提出依頼、入手）に関するルールがない",null,null,null,null,{"$f":"REPT(\"a\"&CHAR(10)&\"b\",ROUNDDOWN(LEN(F374)/66,0))","v":""},"無",null,{"$f":"IF(OFFSET(設問及び配点項目!$A$1,MATCH(VALUE(MID($L373,2,LEN($L373)-2)),設問及び配点項目!C:C,0)-1,11,1,1)=\"\",\"\",OFFSET(設問及び配点項目!$A$1,MATCH(VALUE(MID($L373,2,LEN($L373)-2)),設問及び配点項目!C:C,0)-1,11,1,1))","v":"仕入れ先とのデータ授受（提出依頼、入手）に関するルールがない"}]
[null,null,null,null,null,"",null,null,null,null,"",0]
[null,null,null,null,null,"ルールがあるが、それらに基づく業務が実施できていない",null,null,null,null,"",1]
[null,null,null,null,null,"",null,null,null,null,"",2]
[null,null,null,null,null,"組織内の業務の流れに準じたルールがあり、主要な仕入れ先・部品の入手データに対応できている",null,null,null,null,"",3,null,{"$f":"IF(OFFSET(設問及び配点項目!$A$1,MATCH(VALUE(MID($L373,2,LEN($L373)-2)),設問及び配点項目!C:C,0)-1,12,1,1)=\"\",\"\",OFFSET(設問及び配点項目!$A$1,MATCH(VALUE(MID($L373,2,LEN($L373)-2)),設問及び配点項目!C:C,0)-1,12,1,1))","v":"ルールがあるが、それらに基づく業務が実施できていない"}]
[null,null,null,null,null,"組織内の業務の流れに準じたルールがあり、全ての仕入れ先・部品の入手データに対応できている",null,null,null,null,"",4]
[null,null,null,null,null,"組織内の業務の流れに準じたルールがあり、全ての入手データに対しルールに基づく対応ができており、そのエビデンスを管理できている",null,null,null,null,"",5]
[null,null,null,"5.2.2.","仕入先から受領したデータに対する適合チェック及び不適合時の対応に関するルールの有無とルールに基づく業務遂行状況",null,null,null,null,null,null,"Q37."]
[null,null,null,null,null,"受領したデータに対する適合チェック及び不適合時の対応に関するルールがない",null,null,null,null,{"$f":"REPT(\"a\"&CHAR(10)&\"b\",ROUNDDOWN(LEN(F382)/66,0))","v":""},"無",null,{"$f":"IF(OFFSET(設問及び配点項目!$A$1,MATCH(VALUE(MID($L381,2,LEN($L381)-2)),設問及び配点項目!C:C,0)-1,11,1,1)=\"\",\"\",OFFSET(設問及び配点項目!$A$1,MATCH(VALUE(MID($L381,2,LEN($L381)-2)),設問及び配点項目!C:C,0)-1,11,1,1))","v":"受領したデータに対する適合チェック及び不適合時の対応に関するルールがない"}]
[null,null,null,null,null,"",null,null,null,null,"",0]
[null,null,null,null,null,"ルールはあるが、それらに基づく業務が実施できていない",null,null,null,null,"",1]
[null,null,null,null,null,"",null,null,null,null,"",2]
[null,null,null,null,null,"組織内の業務の流れに準じたルールがあり、主要な入手データに対応できている",null,null,null,null,"",3,null,{"$f":"IF(OFFSET(設問及び配点項目!$A$1,MATCH(VALUE(MID($L381,2,LEN($L381)-2)),設問及び配点項目!C:C,0)-1,12,1,1)=\"\",\"\",OFFSET(設問及び配点項目!$A$1,MATCH(VALUE(MID($L381,2,LEN($L381)-2)),設問及び配点項目!C:C,0)-1,12,1,1))","v":"ルールはあるが、それらに基づく業務が実施できていない"}]
[null,null,null,null,null,"組織内の業務の流れに準じたルールがあり、全ての入手データに対応できている",null,null,null,null,"",4]
[null,null,null,null,null,"組織内の業務の流れに準じたルールがあり、全ての入手データに対しルールに基づく対応ができており、そのエビデンスを管理できている",null,null,null,null,"",5]
[null,null,null,"5.2.3.","NQ",null,null,null,null,null,null,"Q38."]
[null,null,null,null,null,"",null,null,null,null,{"$f":"REPT(\"a\"&CHAR(10)&\"b\",ROUNDDOWN(LEN(F390)/66,0))","v":""},"無",null,{"$f":"IF(OFFSET(設問及び配点項目!$A$1,MATCH(VALUE(MID($L389,2,LEN($L389)-2)),設問及び配点項目!C:C,0)-1,11,1,1)=\"\",\"\",OFFSET(設問及び配点項目!$A$1,MATCH(VALUE(MID($L389,2,LEN($L389)-2)),設問及び配点項目!C:C,0)-1,11,1,1))","v":""}]
[null,null,null,null,null,"",null,null,null,null,"",0]
[null,null,null,null,null,"",null,null,null,null,"",1]
[null,null,null,null,null,"",null,null,null,null,"",2]
[null,null,null,null,null,"",null,null,null,null,"",3,null,{"$f":"IF(OFFSET(設問及び配点項目!$A$1,MATCH(VALUE(MID($L389,2,LEN($L389)-2)),設問及び配点項目!C:C,0)-1,12,1,1)=\"\",\"\",OFFSET(設問及び配点項目!$A$1,MATCH(VALUE(MID($L389,2,LEN($L389)-2)),設問及び配点項目!C:C,0)-1,12,1,1))","v":""}]
[null,null,null,null,null,"",null,null,null,null,"",4]
[null,null,null,null,null,"",null,null,null,null,"",5]
[null,null,"5.3.","自社製品のデータ作成",null,null,null,null,null,null,null,{"$f":"D397","v":"自社製品のデータ作成"}]
[null,null,null,"5.3.1.","（顧客に提出する）自社製品のデータ作成に関するルール・マニュアルの有無とルール・マニュアルに基づくデータ作成の状況",null,null,null,null,null,null,"Q39."]
[null,null,null,null,null,"（顧客に提出する）自社製品のデータ作成に関するルール・マニュアルがない",null,null,null,null,{"$f":"REPT(\"a\"&CHAR(10)&\"b\",ROUNDDOWN(LEN(F399)/66,0))","v":""},"無",null,{"$f":"IF(OFFSET(設問及び配点項目!$A$1,MATCH(VALUE(MID($L398,2,LEN($L398)-2)),設問及び配点項目!C:C,0)-1,11,1,1)=\"\",\"\",OFFSET(設問及び配点項目!$A$1,MATCH(VALUE(MID($L398,2,LEN($L398)-2)),設問及び配点項目!C:C,0)-1,11,1,1))","v":"（顧客に提出する）自社製品のデータ作成に関するルール・マニュアルがない"}]
[null,null,null,null,null,"",null,null,null,null,"",0]
[null,null,null,null,null,"ルール・マニュアルはあるが、それらに基づく業務が実施できていない",null,null,null,null,"",1]
[null,null,null,null,null,"",null,null,null,null,"",2]
[null,null,null,null,null,"ルール・マニュアルがあり、主要なデータに対応できている",null,null,null,null,"",3,null,{"$f":"IF(OFFSET(設問及び配点項目!$A$1,MATCH(VALUE(MID($L398,2,LEN($L398)-2)),設問及び配点項目!C:C,0)-1,12,1,1)=\"\",\"\",OFFSET(設問及び配点項目!$A$1,MATCH(VALUE(MID($L398,2,LEN($L398)-2)),設問及び配点項目!C:C,0)-1,12,1,1))","v":"ルール・マニュアルはあるが、それらに基づく業務が実施できていない"}]
[null,null,null,null,null,"ルール・マニュアルがあり、全てのデータに対応できている",null,null,null,null,"",4]
[null,null,null,null,null,"ルール・マニュアルがあり、全ての入手データに対しルール・マニュアルに基づく対応ができており、そのエビデンスを管理できている",null,null,null,null,"",5]
[null,null,null,"5.3.2.","作成データにおける、自社製造工程内での変換工程の反映の有無とデータ作成状況",null,null,null,null,null,null,"Q40."]
[null,null,null,null,null,"作成データにおける、自社製造工程内での変換工程の反映を行うルール・マニュアルがない",null,null,null,null,{"$f":"REPT(\"a\"&CHAR(10)&\"b\",ROUNDDOWN(LEN(F407)/66,0))","v":""},"無",null,{"$f":"IF(OFFSET(設問及び配点項目!$A$1,MATCH(VALUE(MID($L406,2,LEN($L406)-2)),設問及び配点項目!C:C,0)-1,11,1,1)=\"\",\"\",OFFSET(設問及び配点項目!$A$1,MATCH(VALUE(MID($L406,2,LEN($L406)-2)),設問及び配点項目!C:C,0)-1,11,1,1))","v":"作成データにおける、自社製造工程内での変換工程の反映を行うルール・マニュアルがない"}]
[null,null,null,null,null,"",null,null,null,null,"",0]
[null,null,null,null,null,"ルール・マニュアルはあるが、それらに基づく業務が実施できていない",null,null,null,null,"",1]
[null,null,null,null,null,"",null,null,null,null,"",2]
[null,null,null,null,null,"ルール・マニュアルがあり、主要な作成データに対応できている",null,null,null,null,"",3,null,{"$f":"IF(OFFSET(設問及び配点項目!$A$1,MATCH(VALUE(MID($L406,2,LEN($L406)-2)),設問及び配点項目!C:C,0)-1,12,1,1)=\"\",\"\",OFFSET(設問及び配点項目!$A$1,MATCH(VALUE(MID($L406,2,LEN($L406)-2)),設問及び配点項目!C:C,0)-1,12,1,1))","v":"ルール・マニュアルはあるが、それらに基づく業務が実施できていない"}]
[null,null,null,null,null,"ルール・マニュアルがあり、全ての作成データに対応できている",null,null,null,null,"",4]
[null,null,null,null,null,"ルール・マニュアルがあり、全てのデータに対しルール・マニュアルに基づく対応ができており、そのエビデンスが管理できている",null,null,null,null,"",5]
[null,null,"5.4.","納入先（顧客）へのデータ提出",null,null,null,null,null,null,null,{"$f":"D414","v":"納入先（顧客）へのデータ提出"}]
[null,null,null,"5.4.1.","顧客に対するデータ提出に関するルールの有無とルールに基づくデータ提出の状況",null,null,null,null,null,null,"Q41."]
[null,null,null,null,null,"顧客へ提出するデータが正しく作成されているかを確認するルールがない",null,null,null,null,{"$f":"REPT(\"a\"&CHAR(10)&\"b\",ROUNDDOWN(LEN(F416)/66,0))","v":""},"無",null,{"$f":"IF(OFFSET(設問及び配点項目!$A$1,MATCH(VALUE(MID($L415,2,LEN($L415)-2)),設問及び配点項目!C:C,0)-1,11,1,1)=\"\",\"\",OFFSET(設問及び配点項目!$A$1,MATCH(VALUE(MID($L415,2,LEN($L415)-2)),設問及び配点項目!C:C,0)-1,11,1,1))","v":"顧客へ提出するデータが正しく作成されているかを確認するルールがない"}]
[null,null,null,null,null,"",null,null,null,null,"",0]
[null,null,null,null,null,"ルールはあるが、それらに基づく業務が実施できていない",null,null,null,null,"",1]
[null,null,null,null,null,"",null,null,null,null,"",2]
[null,null,null,null,null,"ルールがあり、主要な顧客へ提出するデータに対応できている",null,null,null,null,"",3,null,{"$f":"IF(OFFSET(設問及び配点項目!$A$1,MATCH(VALUE(MID($L415,2,LEN($L415)-2)),設問及び配点項目!C:C,0)-1,12,1,1)=\"\",\"\",OFFSET(設問及び配点項目!$A$1,MATCH(VALUE(MID($L415,2,LEN($L415)-2)),設問及び配点項目!C:C,0)-1,12,1,1))","v":"ルールはあるが、それらに基づく業務が実施できていない"}]
[null,null,null,null,null,"ルールがあり、全ての顧客へ提出するデータに対応できている",null,null,null,null,"",4]
[null,null,null,null,null,"ルールがあり、全てのデータに対しルールに基づく対応ができており、そのエビデンスが管理できている",null,null,null,null,"",5]
[null,null,null,"5.4.2.","データ提出期限を守る仕組みの有無と提出期限内提出の状況",null,null,null,null,null,null,"Q42."]
[null,null,null,null,null,"データ提出期限を守る仕組みがない",null,null,null,null,{"$f":"REPT(\"a\"&CHAR(10)&\"b\",ROUNDDOWN(LEN(F424)/66,0))","v":""},"無",null,{"$f":"IF(OFFSET(設問及び配点項目!$A$1,MATCH(VALUE(MID($L423,2,LEN($L423)-2)),設問及び配点項目!C:C,0)-1,11,1,1)=\"\",\"\",OFFSET(設問及び配点項目!$A$1,MATCH(VALUE(MID($L423,2,LEN($L423)-2)),設問及び配点項目!C:C,0)-1,11,1,1))","v":"データ提出期限を守る仕組みがない"}]
[null,null,null,null,null,"",null,null,null,null,"",0]
[null,null,null,null,null,"データ提出期限を守る仕組みがあるが、データ提出期限をほとんど遵守できていない",null,null,null,null,"",1]
[null,null,null,null,null,"",null,null,null,null,"",2]
[null,null,null,null,null,"データ提出期限を守るための仕組みがあり、主要なデータは提出期限に遅れることなく提出できている",null,null,null,null,"",3,null,{"$f":"IF(OFFSET(設問及び配点項目!$A$1,MATCH(VALUE(MID($L423,2,LEN($L423)-2)),設問及び配点項目!C:C,0)-1,12,1,1)=\"\",\"\",OFFSET(設問及び配点項目!$A$1,MATCH(VALUE(MID($L423,2,LEN($L423)-2)),設問及び配点項目!C:C,0)-1,12,1,1))","v":"データ提出期限を守る仕組みがあるが、データ提出期限をほとんど遵守できていない"}]
[null,null,null,null,null,"データ提出期限を守るための仕組みがあり、全てのデータは提出期限に遅れることなく提出できている",null,null,null,null,"",4]
[null,null,null,null,null,"組織内の業務の流れに準じた仕組みがあり、全てのデータに対し仕組みに基づく対応ができており、そのエビデンスが管理できている",null,null,null,null,"",5]
[null,null,null,"5.4.3.","提出データが顧客にてReject（拒否判定）された場合の対応に関する手順の明確化の有無と実施状況",null,null,null,null,null,null,"Q43."]
[null,null,null,null,null,"提出データが顧客にてReject（拒否判定）された場合の対応に関するマニュアルがない",null,null,null,null,{"$f":"REPT(\"a\"&CHAR(10)&\"b\",ROUNDDOWN(LEN(F432)/66,0))","v":""},"無",null,{"$f":"IF(OFFSET(設問及び配点項目!$A$1,MATCH(VALUE(MID($L431,2,LEN($L431)-2)),設問及び配点項目!C:C,0)-1,11,1,1)=\"\",\"\",OFFSET(設問及び配点項目!$A$1,MATCH(VALUE(MID($L431,2,LEN($L431)-2)),設問及び配点項目!C:C,0)-1,11,1,1))","v":"提出データが顧客にてReject（拒否判定）された場合の対応に関するマニュアルがない"}]
[null,null,null,null,null,"",null,null,null,null,"",0]
[null,null,null,null,null,"マニュアルはないが、決められたルールがあり、ルールに基づき業務を遂行している",null,null,null,null,"",1]
[null,null,null,null,null,"",null,null,null,null,"",2]
[null,null,null,null,null,"マニュアルがあり、主要なデータに対応できている",null,null,null,null,"",3,null,{"$f":"IF(OFFSET(設問及び配点項目!$A$1,MATCH(VALUE(MID($L431,2,LEN($L431)-2)),設問及び配点項目!C:C,0)-1,12,1,1)=\"\",\"\",OFFSET(設問及び配点項目!$A$1,MATCH(VALUE(MID($L431,2,LEN($L431)-2)),設問及び配点項目!C:C,0)-1,12,1,1))","v":"マニュアルはないが、決められたルールがあり、ルールに基づき業務を遂行している"}]
[null,null,null,null,null,"マニュアルがあり、全てのデータに対応できている",null,null,null,null,"",4]
[null,null,null,null,null,"組織内の業務の流れに準じたマニュアルがあり、全てのデータに対しマニュアルに基づく対応ができており、そのエビデンスが管理できている",null,null,null,null,"",5]
[null,null,"5.5.","データ保管",null,null,null,null,null,null,null,{"$f":"D439","v":"データ保管"}]
[null,null,null,"5.5.1.","入手したデータの保管ルールの有無とルールに基づく実施状況",null,null,null,null,null,null,"Q44."]
[null,null,null,null,null,"入手したデータの保管ルールがない",null,null,null,null,{"$f":"REPT(\"a\"&CHAR(10)&\"b\",ROUNDDOWN(LEN(F441)/66,0))","v":""},"無",null,{"$f":"IF(OFFSET(設問及び配点項目!$A$1,MATCH(VALUE(MID($L440,2,LEN($L440)-2)),設問及び配点項目!C:C,0)-1,11,1,1)=\"\",\"\",OFFSET(設問及び配点項目!$A$1,MATCH(VALUE(MID($L440,2,LEN($L440)-2)),設問及び配点項目!C:C,0)-1,11,1,1))","v":"入手したデータの保管ルールがない"}]
[null,null,null,null,null,"",null,null,null,null,"",0]
[null,null,null,null,null,"保管ルールはないが、入手データは所定の場所に保管している",null,null,null,null,"",1]
[null,null,null,null,null,"",null,null,null,null,"",2]
[null,null,null,null,null,"仕入れ先からの入手データの保管に関し、組織内の業務の流れに準じたルールがあり、主要な入手データに対応できている",null,null,null,null,"",3,null,{"$f":"IF(OFFSET(設問及び配点項目!$A$1,MATCH(VALUE(MID($L440,2,LEN($L440)-2)),設問及び配点項目!C:C,0)-1,12,1,1)=\"\",\"\",OFFSET(設問及び配点項目!$A$1,MATCH(VALUE(MID($L440,2,LEN($L440)-2)),設問及び配点項目!C:C,0)-1,12,1,1))","v":"保管ルールはないが、入手データは所定の場所に保管している"}]
[null,null,null,null,null,"仕入れ先からの入手データの保管に関し、組織内の業務の流れに準じたルールがあり、全ての入手データに対応できている",null,null,null,null,"",4]
[null,null,null,null,null,"組織内の業務の流れに準じたルールがあり、全てのデータに対しルールに基づく対応ができており、そのエビデンスが管理できている",null,null,null,null,"",5]
[null,null,null,"5.5.2.","顧客へ提出したデータの保管ルールの有無とルールに基づく実施状況",null,null,null,null,null,null,"Q45."]
[null,null,null,null,null,"顧客へ提出したデータの保管ルールがない",null,null,null,null,{"$f":"REPT(\"a\"&CHAR(10)&\"b\",ROUNDDOWN(LEN(F449)/66,0))","v":""},"無",null,{"$f":"IF(OFFSET(設問及び配点項目!$A$1,MATCH(VALUE(MID($L448,2,LEN($L448)-2)),設問及び配点項目!C:C,0)-1,11,1,1)=\"\",\"\",OFFSET(設問及び配点項目!$A$1,MATCH(VALUE(MID($L448,2,LEN($L448)-2)),設問及び配点項目!C:C,0)-1,11,1,1))","v":"顧客へ提出したデータの保管ルールがない"}]
[null,null,null,null,null,"",null,null,null,null,"",0]
[null,null,null,null,null,"保管ルールはないが、提出データは所定の場所に保管している",null,null,null,null,"",1]
[null,null,null,null,null,"",null,null,null,null,"",2]
[null,null,null,null,null,"顧客への提出データの保管に関し、組織内の業務の流れに準じたルールがあり、主要な提出データに対応できている",null,null,null,null,"",3,null,{"$f":"IF(OFFSET(設問及び配点項目!$A$1,MATCH(VALUE(MID($L448,2,LEN($L448)-2)),設問及び配点項目!C:C,0)-1,12,1,1)=\"\",\"\",OFFSET(設問及び配点項目!$A$1,MATCH(VALUE(MID($L448,2,LEN($L448)-2)),設問及び配点項目!C:C,0)-1,12,1,1))","v":"保管ルールはないが、入手データは所定の場所に保管している"}]
[null,null,null,null,null,"顧客への提出データの保管に関し、組織内の業務の流れに準じたルールがあり、全ての提出データに対応できている",null,null,null,null,"",4]
[null,null,null,null,null,"組織内の業務の流れに準じたルールがあり、全てのデータに対しルールに基づく対応ができており、そのエビデンスが管理できている",null,null,null,null,"",5]
[null,null,"5.6.","データ更新",null,null,null,null,null,null,null,{"$f":"D456","v":"データ更新"}]
[null,null,null,"5.6.1.","法規および顧客の基準の変更時のデータ更新（作成・提出・保管）に関する規定の有無と規定に基づく実施状況",null,null,null,null,null,null,"Q46."]
[null,null,null,null,null,"管理基準（法規、顧客要求）変更時のデータ更新（作成・提出・保管）に関するルールがない",null,null,null,null,{"$f":"REPT(\"a\"&CHAR(10)&\"b\",ROUNDDOWN(LEN(F458)/66,0))","v":""},"無",null,{"$f":"IF(OFFSET(設問及び配点項目!$A$1,MATCH(VALUE(MID($L457,2,LEN($L457)-2)),設問及び配点項目!C:C,0)-1,11,1,1)=\"\",\"\",OFFSET(設問及び配点項目!$A$1,MATCH(VALUE(MID($L457,2,LEN($L457)-2)),設問及び配点項目!C:C,0)-1,11,1,1))","v":"管理基準（法規、顧客要求）変更時のデータ更新（作成・提出・保管）に関するルールがない"}]
[null,null,null,null,null,"",null,null,null,null,"",0]
[null,null,null,null,null,"顧客へ提出したデータの更新に関する規定ルールはあるが、それらに基づく業務が実施できていない",null,null,null,null,"",1]
[null,null,null,null,null,"",null,null,null,null,"",2]
[null,null,null,null,null,"保管データ（入手・提出）の更新に関する規定があり、主要なデータに対応できている",null,null,null,null,"",3,null,{"$f":"IF(OFFSET(設問及び配点項目!$A$1,MATCH(VALUE(MID($L457,2,LEN($L457)-2)),設問及び配点項目!C:C,0)-1,12,1,1)=\"\",\"\",OFFSET(設問及び配点項目!$A$1,MATCH(VALUE(MID($L457,2,LEN($L457)-2)),設問及び配点項目!C:C,0)-1,12,1,1))","v":"顧客へ提出したデータの更新に関する規定ルールはあるが、それらに基づく業務が実施できていない"}]
[null,null,null,null,null,"保管データ（入手・提出）の更新に関する規定があり、全てのデータに対応できている",null,null,null,null,"",4]
[null,null,null,null,null,"組織内の業務の流れに準じた規定があり、全てのデータに対し規定に基づく対応ができており、そのエビデンスが管理できている",null,null,null,null,"",5]
[null,"6.","人的資源および文書・情報の管理"]
[null,null,"6.1.","教育・人材育成",null,null,null,null,null,null,null,{"$f":"D466","v":"教育・人材育成"}]
[null,null,null,"6.1.1.","製品含有化学物質管理業務の持続性維持のための仕組み（能力要件、伝承、社内教育）の有無と実態",null,null,null,null,null,null,"Q47."]
[null,null,null,null,null,"製品含有化学物質管理業務の持続性維持の仕組みがない",null,null,null,null,{"$f":"REPT(\"a\"&CHAR(10)&\"b\",ROUNDDOWN(LEN(F468)/66,0))","v":""},"無",null,{"$f":"IF(OFFSET(設問及び配点項目!$A$1,MATCH(VALUE(MID($L467,2,LEN($L467)-2)),設問及び配点項目!C:C,0)-1,11,1,1)=\"\",\"\",OFFSET(設問及び配点項目!$A$1,MATCH(VALUE(MID($L467,2,LEN($L467)-2)),設問及び配点項目!C:C,0)-1,11,1,1))","v":"製品含有化学物質管理業務の持続性維持の仕組みがない"}]
[null,null,null,null,null,"",null,null,null,null,"",0]
[null,null,null,null,null,"関係部署間で合意された仕組みがあり、その内容に基づき業務を遂行している",null,null,null,null,"",1]
[null,null,null,null,null,"",null,null,null,null,"",2]
[null,null,null,null,null,"規定があり、定期的（計画的）な教育等ができている",null,null,null,null,"",3,null,{"$f":"IF(OFFSET(設問及び配点項目!$A$1,MATCH(VALUE(MID($L467,2,LEN($L467)-2)),設問及び配点項目!C:C,0)-1,12,1,1)=\"\",\"\",OFFSET(設問及び配点項目!$A$1,MATCH(VALUE(MID($L467,2,LEN($L467)-2)),設問及び配点項目!C:C,0)-1,12,1,1))","v":"関係部署間で合意された仕組みがあり、その内容に基づき業務を遂行している"}]
[null,null,null,null,null,"規定があり、計画的な教育等が行われ、受講者の理解度も確認している",null,null,null,null,"",4]
[null,null,null,null,null,"規定があり、製品含有化学物質管理の業務実施能力を向上・維持するのための長期的なビジョンとともに対応ができている",null,null,null,null,"",5]
[null,null,null,"6.1.2.","NQ",null,null,null,null,null,null,"Q48."]
[null,null,null,null,null,"",null,null,null,null,{"$f":"REPT(\"a\"&CHAR(10)&\"b\",ROUNDDOWN(LEN(F476)/66,0))","v":""},"無",null,{"$f":"IF(OFFSET(設問及び配点項目!$A$1,MATCH(VALUE(MID($L475,2,LEN($L475)-2)),設問及び配点項目!C:C,0)-1,11,1,1)=\"\",\"\",OFFSET(設問及び配点項目!$A$1,MATCH(VALUE(MID($L475,2,LEN($L475)-2)),設問及び配点項目!C:C,0)-1,11,1,1))","v":""}]
[null,null,null,null,null,"",null,null,null,null,"",0]
[null,null,null,null,null,"",null,null,null,null,"",1]
[null,null,null,null,null,"",null,null,null,null,"",2]
[null,null,null,null,null,"",null,null,null,null,"",3,null,{"$f":"IF(OFFSET(設問及び配点項目!$A$1,MATCH(VALUE(MID($L475,2,LEN($L475)-2)),設問及び配点項目!C:C,0)-1,12,1,1)=\"\",\"\",OFFSET(設問及び配点項目!$A$1,MATCH(VALUE(MID($L475,2,LEN($L475)-2)),設問及び配点項目!C:C,0)-1,12,1,1))","v":""}]
[null,null,null,null,null,"",null,null,null,null,"",4]
[null,null,null,null,null,"",null,null,null,null,"",5]
[null,null,"6.2.","文書（製品化学物質管理に係る各種の情報、記録）の管理",null,null,null,null,null,null,null,{"$f":"D483","v":"文書（製品化学物質管理に係る各種の情報、記録）の管理"}]
[null,null,null,"6.2.1.","記録管理に関する規定（手順書、マニュアル）の有無と管理の実態",null,null,null,null,null,null,"Q49."]
[null,null,null,null,null,"記録管理に関する規定がない",null,null,null,null,{"$f":"REPT(\"a\"&CHAR(10)&\"b\",ROUNDDOWN(LEN(F485)/66,0))","v":""},"無",null,{"$f":"IF(OFFSET(設問及び配点項目!$A$1,MATCH(VALUE(MID($L484,2,LEN($L484)-2)),設問及び配点項目!C:C,0)-1,11,1,1)=\"\",\"\",OFFSET(設問及び配点項目!$A$1,MATCH(VALUE(MID($L484,2,LEN($L484)-2)),設問及び配点項目!C:C,0)-1,11,1,1))","v":"記録管理に関する規定がない"}]
[null,null,null,null,null,"",null,null,null,null,"",0]
[null,null,null,null,null,"規定はないが、関係部署間で合意されたルールがあり、その内容に基づき業務を遂行している",null,null,null,null,"",1]
[null,null,null,null,null,"",null,null,null,null,"",2]
[null,null,null,null,null,"規定があり、その規定に基づき業務が遂行されている",null,null,null,null,"",3,null,{"$f":"IF(OFFSET(設問及び配点項目!$A$1,MATCH(VALUE(MID($L484,2,LEN($L484)-2)),設問及び配点項目!C:C,0)-1,12,1,1)=\"\",\"\",OFFSET(設問及び配点項目!$A$1,MATCH(VALUE(MID($L484,2,LEN($L484)-2)),設問及び配点項目!C:C,0)-1,12,1,1))","v":"規定はないが、関係部署間で合意されたルールがあり、その内容に基づき業務を遂行している"}]
[null,null,null,null,null,"規定に基づき業務が遂行されており、上記の規定の維持管理、見直しの仕組みがあり、常に最新状態の業務規定を業務に適用している",null,null,null,null,"",4]
[null,null,null,null,null,"規定に基づく業務遂行が漏れなく実施されており、業務遂行状況を組織内で管理する仕組みがあり、実行されている",null,null,null,null,"",5]
[null,null,"6.3.","教育（6.1.1）、文書管理（6.2.1）の実施状況の評価及び改善",null,null,null,null,null,null,null,{"$f":"D492","v":"教育（6.1.1）、文書管理（6.2.1）の実施状況の評価及び改善"}]
[null,null,null,"6.3.1.","実施状況の評価及び改善をする規定の有無と実態",null,null,null,null,null,null,"Q50."]
[null,null,null,null,null,"実施状況の評価及び改善に関する規定がない",null,null,null,null,{"$f":"REPT(\"a\"&CHAR(10)&\"b\",ROUNDDOWN(LEN(F494)/66,0))","v":""},"無",null,{"$f":"IF(OFFSET(設問及び配点項目!$A$1,MATCH(VALUE(MID($L493,2,LEN($L493)-2)),設問及び配点項目!C:C,0)-1,11,1,1)=\"\",\"\",OFFSET(設問及び配点項目!$A$1,MATCH(VALUE(MID($L493,2,LEN($L493)-2)),設問及び配点項目!C:C,0)-1,11,1,1))","v":"実施状況の評価及び改善に関する規定がない"}]
[null,null,null,null,null,"",null,null,null,null,"",0]
[null,null,null,null,null,"規定はないが仕組みはあり、その内容に基づき業務を遂行している",null,null,null,null,"",1]
[null,null,null,null,null,"",null,null,null,null,"",2]
[null,null,null,null,null,"規定があり、その規定に基づき業務が遂行されている",null,null,null,null,"",3,null,{"$f":"IF(OFFSET(設問及び配点項目!$A$1,MATCH(VALUE(MID($L493,2,LEN($L493)-2)),設問及び配点項目!C:C,0)-1,12,1,1)=\"\",\"\",OFFSET(設問及び配点項目!$A$1,MATCH(VALUE(MID($L493,2,LEN($L493)-2)),設問及び配点項目!C:C,0)-1,12,1,1))","v":"規定はないが仕組みはあり、その内容に基づき業務を遂行している"}]
[null,null,null,null,null,"規定に基づき業務が遂行されており、上記の規定の維持管理、見直しの仕組みがあり、常に最新状態の業務規定を業務に適用している",null,null,null,null,"",4]
[null,null,null,null,null,"規定に基づく業務遂行が漏れなく実施されており、業務遂行状況を組織内で管理する仕組みがあり、実行されている",null,null,null,null,"",5]
[]
[]
[]
[]
[null,"自由意見欄"]
[null,"お取引先様と弊社での化学物質管理全体を通し、要望や相談したい事がございましたら、ご入力ください。"]
[null,"※入力内容から必要と判断しました場合、弊社から貴社にコンタクトさせていただくことがごさいます。"]
[]
[]
[]
[null,"本JAMA・JAPIA製品含有化学物質管理ガイドライン、またはチェックシートに関しまして、要望やご意見等がございましたら、ご入力下さい。"]
[]
[]
[]
[]
[]
[]
[]
[]
[]
[]
[]
[]
[]
[]
[]
[]
[]
[]
[]
[]
[]
[]
[]
[]
[]
[]
[]
[]
[]
[]
[]
[]
[]
[]
[]
[]
[]
[]
[]
[]
[]
[]
[]
[]
[]
[]
[]
[]
[]
[]
[]
[]
[]
[]
[]
[]
[]
[]
[]
[]
[]
[]
[]
[]
[]
[]
[]
[]
[]
[]
[]
[]
[]
[]
[]
[]
[]
[]
[]
[]
[]
[]
[]
[]
[]
[]
[]
[]
[]
[]
[]
[]
[]
[]
[]
[]
[]
[]
[]
[]
[]
[]
[]
[]
[]
[]
[]
[]
[]
[]
[]
[]
[]
[]
[]
[]
[]
[]
[]
[]
[]
[]
[]
[]
[]
[]
[]
[]
[]
[]
[]
[]
[]
[]
[]
[]
[]
[]
[]
[]
[]
[]
[]
[]
[]
[]
[]
[]
[]
[]
[]
[]
[null,false]

{"sheet":"設問のコントロール","index":1,"n_rows":74,"n_cols":67,"rows_kept":74,"cut":false,"hidden":true,"merged":[[1,5,1,7],[9,17,9,66],[8,4,8,66],[11,1,73,1],[8,1,10,3],[24,2,73,2],[11,2,23,2],[9,4,9,16]]}
[]
[null,null,null,null,null,"常に設問を表示"]
[null,null,null,null,"N","判定条件＝9行目がNo/無しの場合、アクション＝D列の設問を非表示／グレー化"]
[null,null,null,null,"Y","判定条件＝9行目がYes/有りの場合、アクション＝D列の設問を非表示／グレー化"]
[null,null,null,null,"G","設問を非表示／グレー化"]
[null,null,null,null,"D","常に設問を非表示"]
[]
[null,null,null,0,1,2,3,4,5,6,7,8,9,10,11,12,13,14,15,16,17,18,19,20,21,22,23,24,25,26,27,28,29,30,31,32,33,34,35,36,37,38,39,40,41,42,43,44,45,46,47,48,49,50,51,52,53,54,55,56,57,58,59,60,61,62,63]
[null,null,null,null,"　　　⇒　判定条件"]
[null,null,null,null,"事前",null,null,null,null,null,null,null,null,null,null,null,null,"本票"]
[0,null,null,null,"C1.","C2.","C3.","C4.","C5.","C6.","C7.","C8.","C9.","C10.","C11.","C12.","C13.","Q1.","Q2.","Q3.","Q4.","Q5.","Q6.","Q7.","Q8.","Q9.","Q10.","Q11.","Q12.","Q13.","Q14.","Q15.","Q16.","Q17.","Q18.","Q19.","Q20.","Q21.","Q22.","Q23.","Q24.","Q25.","Q26.","Q27.","Q28.","Q29.","Q30.","Q31.","Q32.","Q33.","Q34.","Q35.","Q36.","Q37.","Q38.","Q39.","Q40.","Q41.","Q42.","Q43.","Q44.","Q45.","Q46.","Q47.","Q48.","Q49.","Q50."]
[1,"　　↓　アクション","事前","C1."]
[2,null,null,"C2."]
[3,null,null,"C3."]
[4,null,null,"C4."]
[5,null,null,"C5."]
[6,null,null,"C6."]
[7,null,null,"C7."]
[8,null,null,"C8."]
[9,null,null,"C9."]
[10,null,null,"C10."]
[11,null,null,"C11."]
[12,null,null,"C12."]
[13,null,null,"C13.","D","D","D","D","D","D","D","D","D","D","D","D","D","D","D","D","D","D","D","D","D","D","D","D","D","D","D","D","D","D","D","D","D","D","D","D","D","D","D","D","D","D","D","D","D","D","D","D","D","D","D","D","D","D","D","D","D","D","D","D","D","D","D"]
[14,null,"本票","Q1.","N"]
[15,null,null,"Q2.","D","D","D","D","D","D","D","D","D","D","D","D","D","D","D","D","D","D","D","D","D","D","D","D","D","D","D","D","D","D","D","D","D","D","D","D","D","D","D","D","D","D","D","D","D","D","D","D","D","D","D","D","D","D","D","D","D","D","D","D","D","D","D"]
[16,null,null,"Q3.","D","D","D","D","D","D","D","D","D","D","D","D","D","D","D","D","D","D","D","D","D","D","D","D","D","D","D","D","D","D","D","D","D","D","D","D","D","D","D","D","D","D","D","D","D","D","D","D","D","D","D","D","D","D","D","D","D","D","D","D","D","D","D"]
[17,null,null,"Q4.","D","D","D","D","D","D","D","D","D","D","D","D","D","D","D","D","D","D","D","D","D","D","D","D","D","D","D","D","D","D","D","D","D","D","D","D","D","D","D","D","D","D","D","D","D","D","D","D","D","D","D","D","D","D","D","D","D","D","D","D","D","D","D"]
[18,null,null,"Q5.","D","D","D","D","D","D","D","D","D","D","D","D","D","D","D","D","D","D","D","D","D","D","D","D","D","D","D","D","D","D","D","D","D","D","D","D","D","D","D","D","D","D","D","D","D","D","D","D","D","D","D","D","D","D","D","D","D","D","D","D","D","D","D"]
[19,null,null,"Q6.","N"]
[20,null,null,"Q7.","D","D","D","D","D","D","D","D","D","D","D","D","D","D","D","D","D","D","D","D","D","D","D","D","D","D","D","D","D","D","D","D","D","D","D","D","D","D","D","D","D","D","D","D","D","D","D","D","D","D","D","D","D","D","D","D","D","D","D","D","D","D","D"]
[21,null,null,"Q8.","N"]
[22,null,null,"Q9.","N",null,null,null,null,null,null,"N"]
[23,null,null,"Q10.","D","D","D","D","D","D","D","D","D","D","D","D","D","D","D","D","D","D","D","D","D","D","D","D","D","D","D","D","D","D","D","D","D","D","D","D","D","D","D","D","D","D","D","D","D","D","D","D","D","D","D","D","D","D","D","D","D","D","D","D","D","D","D"]
[24,null,null,"Q11.","N"]
[25,null,null,"Q12.","N"]
[26,null,null,"Q13.","D","D","D","D","D","D","D","D","D","D","D","D","D","D","D","D","D","D","D","D","D","D","D","D","D","D","D","D","D","D","D","D","D","D","D","D","D","D","D","D","D","D","D","D","D","D","D","D","D","D","D","D","D","D","D","D","D","D","D","D","D","D","D"]
[27,null,null,"Q14.","N"]
[28,null,null,"Q15.","N"]
[29,null,null,"Q16.","N"]
[30,null,null,"Q17.","D","D","D","D","D","D","D","D","D","D","D","D","D","D","D","D","D","D","D","D","D","D","D","D","D","D","D","D","D","D","D","D","D","D","D","D","D","D","D","D","D","D","D","D","D","D","D","D","D","D","D","D","D","D","D","D","D","D","D","D","D","D","D"]
[31,null,null,"Q18.","N",null,null,null,"N","Y"]
[32,null,null,"Q19.","N",null,null,null,null,"Y"]
[33,null,null,"Q20.","N",null,null,null,null,"Y"]
[34,null,null,"Q21.","N",null,null,null,null,"Y"]
[35,null,null,"Q22.","N",null,null,null,null,"Y","N"]
[36,null,null,"Q23.","N",null,null,null,null,"Y"]
[37,null,null,"Q24.","N",null,null,null,null,"Y"]
[38,null,null,"Q25.","N"]
[39,null,null,"Q26.","D","D","D","D","D","D","D","D","D","D","D","D","D","D","D","D","D","D","D","D","D","D","D","D","D","D","D","D","D","D","D","D","D","D","D","D","D","D","D","D","D","D","D","D","D","D","D","D","D","D","D","D","D","D","D","D","D","D","D","D","D","D","D"]
[40,null,null,"Q27.","D","D","D","D","D","D","D","D","D","D","D","D","D","D","D","D","D","D","D","D","D","D","D","D","D","D","D","D","D","D","D","D","D","D","D","D","D","D","D","D","D","D","D","D","D","D","D","D","D","D","D","D","D","D","D","D","D","D","D","D","D","D","D"]
[41,null,null,"Q28.","N"]
[42,null,null,"Q29.","N"]
[43,null,null,"Q30.","N"]
[44,null,null,"Q31.","N"]
[45,null,null,"Q32.","D","D","D","D","D","D","D","D","D","D","D","D","D","D","D","D","D","D","D","D","D","D","D","D","D","D","D","D","D","D","D","D","D","D","D","D","D","D","D","D","D","D","D","D","D","D","D","D","D","D","D","D","D","D","D","D","D","D","D","D","D","D","D"]
[46,null,null,"Q33.","D","D","D","D","D","D","D","D","D","D","D","D","D","D","D","D","D","D","D","D","D","D","D","D","D","D","D","D","D","D","D","D","D","D","D","D","D","D","D","D","D","D","D","D","D","D","D","D","D","D","D","D","D","D","D","D","D","D","D","D","D","D","D"]
[47,null,null,"Q34.","D","D","D","D","D","D","D","D","D","D","D","D","D","D","D","D","D","D","D","D","D","D","D","D","D","D","D","D","D","D","D","D","D","D","D","D","D","D","D","D","D","D","D","D","D","D","D","D","D","D","D","D","D","D","D","D","D","D","D","D","D","D","D"]
[48,null,null,"Q35.","N"]
[49,null,null,"Q36.","N"]
[50,null,null,"Q37.","N"]
[51,null,null,"Q38.","D","D","D","D","D","D","D","D","D","D","D","D","D","D","D","D","D","D","D","D","D","D","D","D","D","D","D","D","D","D","D","D","D","D","D","D","D","D","D","D","D","D","D","D","D","D","D","D","D","D","D","D","D","D","D","D","D","D","D","D","D","D","D"]
[52,null,null,"Q39.","N",null,null,null,null,"Y"]
[53,null,null,"Q40.","N",null,null,null,null,"Y","N"]
[54,null,null,"Q41.","N"]
[55,null,null,"Q42.","N"]
[56,null,null,"Q43.","N"]
[57,null,null,"Q44.","N"]
[58,null,null,"Q45.","N"]
[59,null,null,"Q46.","N"]
[60,null,null,"Q47.","N"]
[61,null,null,"Q48.","D","D","D","D","D","D","D","D","D","D","D","D","D","D","D","D","D","D","D","D","D","D","D","D","D","D","D","D","D","D","D","D","D","D","D","D","D","D","D","D","D","D","D","D","D","D","D","D","D","D","D","D","D","D","D","D","D","D","D","D","D","D","D"]
[62,null,null,"Q49.","N"]
[63,null,null,"Q50.","N"]

{"sheet":"ガイドライン文書","index":2,"n_rows":182,"n_cols":7,"rows_kept":182,"cut":false,"hidden":true,"merged":[]}
[]
[null,"1.","組織の状態とマネジメントシステム"]
[null,null,"1.1.","マネジメントシステム"]
[null,null,null,"1.1.1.","マネジメントシステム（ISO14001の取得 もしくは その他環境関連規格（簡易EMS））の取得と実態",null,"Q1."]
[null,null,null,null,"【点検項目：5.1.1.1 マネジメントシステム（ISO14001の取得 もしくは その他環境関連規格（簡易EMS））の取得と実態】"]
[null,null,null,null,"各企業・組織はこれらのマネジメントシステムを取得し、取得した基準に基づく対応を実施していること。\nその際、マネジメントシステムの維持管理のために、内部監査と外部監査を定期的に実施していることが望ましい。"]
[null,null,null,"1.1.2.","マネジメントシステムの維持管理とその実態",null,"Q2."]
[]
[]
[null,null,"1.0.","組織の状態"]
[null,null,null,"1.0.1.","組織及びその状況の理解の有無と実態",null,"Q3."]
[]
[]
[null,null,null,"1.0.2.","利害関係者のニーズ及び期待の理解の有無と実態",null,"Q4."]
[]
[]
[null,null,null,"1.0.3.","製品含有化学物質管理の適用範囲の適切な決定とその実態",null,"Q5."]
[]
[]
[null,"2.","基本方針・管理体制"]
[null,null,"2.1.","製品含有化学物質に関する基本方針"]
[null,null,null,"2.1.1.","製品含有化学物質管理に関する方針の有無とその社内（組織内）、社外への展開状況",null,"Q6."]
[null,null,null,null,"【点検項目：5.2.1.1 製品含有化学物質管理に関する方針の有無とその社内（組織内）、社外への展開状況】"]
[null,null,null,null,"会社（組織）における製品含有化学物質管理体制が記載された規定があり、業務が実施されていること。\n更には、その方針は定期的に見直し及び更新が行われ、その内容が社内（組織内）だけでなく社外にも公表されていることが望ましい。"]
[null,null,null,"2.1.2.","製品含有化学物質管理に関する方針の利害関係者への展開とその展開状況",null,"Q7."]
[]
[]
[null,null,"2.2.","製品含有化学物質管理体制"]
[null,null,null,"2.2.1.","会社（組織）における製品含有化学物質管理体制の有無とその実態",null,"Q8."]
[null,null,null,null,"【点検項目：5.2.2.1 組織における製品含有化学物質管理体制の有無とその実態】"]
[null,null,null,null,"会社（組織）における製品含有化学物質管理体制が記載された規定があり、業務が実施されていること。\n更には、最新状態の規定に基づいた社内関連業務の管理、運営の実態を評価、確認する仕組みがあり、実行されている（上位報告体、社内監査など）ことが望ましい。"]
[null,null,"2.3.","国内子会社、海外子会社、社外委託先に対するガバナンス"]
[null,null,null,"2.3.1.","国内子会社、海外子会社、社外委託先に対するガバナンス及び管理体制の確立とその実態",null,"Q9."]
[null,null,null,null,"【点検項目：5.2.3.1 国内子会社、海外子会社、社外委託先に対するガバナンス及び管理体制の確立とその実態】"]
[null,null,null,null,"国内子会社、海外子会社、社外委託先に対する管理体制を記載した規定があり、業務が実施されていること。\n更には、最新状態の規定に基づいた社内関連業務の管理、運営の実態を評価、確認する仕組みがあり、評価・確認されていることが望ましい。"]
[null,null,"2.4.","外部委託先における製品含有化学物質の管理"]
[null,null,null,"2.4.1.","外部委託先における製品含有化学物質の管理状況確認とその実態",null,"Q10."]
[]
[]
[null,"3.","製品含有化学物質管理の遂行"]
[null,null,"3.1.","製品含有化学物質管理基準"]
[null,null,null,"3.1.1.","製品含有化学物質基準（自社製品が守るべき法規や規制及び管理すべき物質や管理方法)の有無とその実態",null,"Q11."]
[null,null,null,null,"【点検項目：5.3.1.1 製品含有化学物質管理基準（自社製品が守るべき法規や規制及び管理すべき物質や管理方法)の有無】"]
[null,null,null,null,"会社（組織）で合意された基準があり、社内（組織内）展開、社外への公表が行われていること。\n更には、社内外の全ての関係先が最新版の基準に準じた対応ができていることを確認できていることが望ましい。"]
[null,null,"3.2.","確実な製品含有化学物質管理業務遂行の為の役割分担及び業務規定"]
[null,null,null,"3.2.1.","製品含有化学物質管理業務遂行の為の役割分担・業務手順を記載した規定の有無と、その実態",null,"Q12."]
[null,null,null,null,"【点検項目：5.3.2.1 製品含有化学物質管理業務遂行の為の役割分担・業務手順を記載した規定とその実態】"]
[null,null,null,null,"5.2.2項の体制に基づく担当部署の役割分担及び業務手順が記載された規定と、製品含有化学物質管理体制に基づいた業務遂行状況を確認する会議体があること。\n更には、規定と業務遂行状況を確認する会議体があり、定期的に会議体を開催し、運営の実態を評価、確認する仕組みがあり、評価・確認されていることが望ましい。"]
[null,null,null,"3.2.2.",null,null,"Q13."]
[]
[]
[null,null,"3.3.","目標及び実施計画"]
[null,null,null,"3.3.1.","目標および目標達成のための実施計画の有無と計画に基づく業務遂行状況",null,"Q14."]
[null,null,null,null,"【点検項目：5.3.3.1目標および目標達成のための実施計画の有無と計画に基づく業務遂行状況】"]
[null,null,null,null,"製品含有化学物質管理主管部署により策定、組織のトップマネジメントにより承認された目標と実施計画があり、実行されていること。\n更には、目標、目標達成に向けた実施計画、業務遂行状況が管理され、上位への報告、承認がなされていることが望ましい。"]
[null,null,"3.4.","顧客の製品含有化学物質管理に関する仕組み"]
[null,null,null,"3.4.1.","製品含有化学物質管理に係る各種業務（IMDS、基準、各種調査等）の自社の窓口部署、担当者情報の維持管理及び顧客への伝達の状況",null,"Q15."]
[null,null,null,null,"【点検項目：5.3.4.1 製品含有化学物質管理に係る各種業務（IMDS、管理基準、各種調査等）の自社の窓口部署、担当者情報の維持管理及び顧客への伝達の状況】"]
[null,null,null,null,"納入先(顧客)との円滑なコミュニケーションのため自社の窓口部署、担当者情報の顧客への伝達に関する規定があり、顧客に伝達できていること。\n更には、規定に基づき自社の窓口部署、担当者情報を伝達し、伝達状況を管理できていることが望ましい。"]
[null,null,null,"3.4.2.","顧客の製品含有化学物質管理規定への対応状況",null,"Q16."]
[null,null,null,null,"【点検項目：5.3.4.2 顧客の製品含有化学物質管理規定への対応状況】"]
[null,null,null,null,"顧客の製品含有化学物質管理規定は個別に対応し、必要に応じて社内の製品含有化学物質管理に関する規定または基準に反映していること。\n更には、顧客の製品含有化学物質管理規定を、社内の製品含有化学物質管理に関する規定または基準へ反映し、適合しているか確認できていることが望ましい。"]
[null,null,null,"3.4.3.",null,null,"Q17."]
[]
[]
[null,"4.","製品含有化学物質管理業務の運営"]
[null,null,"4.1.","設計・開発における製品含有化学物質管理"]
[null,null,null,"4.1.1.","業務管理規定の有無と、規定に基づく業務遂行・管理状況",null,"Q18."]
[null,null,null,null,"【点検項目：5.4.1.1 業務管理規定の有無と規定に基づく業務遂行・管理状況】"]
[null,null,null,null,"設計・開発段階における製品含有化学物質管理のための規定があり、規定に基づき業務が遂行されていること。\n更には、最新状態の規定に基づいて業務が漏れなく実施され、業務遂行状況を組織内で管理する仕組みがあり、実行されていることが望ましい。"]
[null,null,"4.2.","部品・材料の購入、受け入れ時における製品含有化学物質管理"]
[null,null,null,"4.2.1.","製品含有化学物質情報の仕入先からの入手・確認に関する規定の有無と規定に基づく業務遂行状況",null,"Q19."]
[null,null,null,null,"【点検項目：5.4.2.1 製品含有化学物質情報の仕入れ先からの入手・確認に関する規定の有無と規定に基づく業務遂行状況】"]
[null,null,null,null,"規定の中で管理すべき部品・材料について、情報の入手・確認・管理の担当者と方法が文書化され、規定に基づき業務が遂行されていること。\n更には、最新状態の規定に基づいて業務が漏れなく実施され、業務遂行状況を組織内で管理する仕組みがあり、実行されていることが望ましい。"]
[null,null,null,"4.2.2.","初品/日常受け入れ時における製品含有化学物質管理に関する規定の有無と規定に基づく業務遂行状況",null,"Q20."]
[null,null,null,null,"【点検項目：5.4.2.2 初品/日常受け入れ時における製品含有化学物質管理に関する規定の有無と規定に基づく業務遂行状況】"]
[null,null,null,null,"仕入れ先からの初品/日常受け入れ時に、規定の中で、仕入れ先からの初品/日常受け入れ時に、製品含有化学物質に関わる管理の仕組みが文書化され、規定に基づき業務が遂行されていること。\n更には、最新状態の規定に基づいて業務が漏れなく実施され、業務遂行状況を組織内で管理する仕組みがあり、実行されていることが望ましい。"]
[null,null,"4.3.","自社内の製造工程における製品含有化学物質管理"]
[null,null,null,"4.3.1.","製造工程における管理基準が記載された規定の有無と規定に基づく業務遂行状況",null,"Q21."]
[null,null,null,null,"【点検項目：5.4.3.1 製造工程における管理基準が記載された管理規定の有無と規定に基づく業務遂行状況】"]
[null,null,null,null,"製造工程における製品含有化学物質管理のための規定があり、その規定に基づき業務が遂行されていること。\n更には、最新状態の規定に基づいて業務が漏れなく実施され、業務遂行状況を組織内で管理する仕組みがあり、実行されていることが望ましい。"]
[null,null,null,"4.3.2.","変換工程（酸化反応、還元反応などによる化学物質の組成変化、濃縮、蒸発などによる化学物質の濃度変化が発生する製造工程）\n を伴う製品に関する管理規定の有無と規定に基づく業務遂行状況",null,"Q22."]
[null,null,null,null,"【点検項目：5.4.3.2変換工程（酸化反応、還元反応などによる化学物質の組成変化、濃縮、蒸発などによる化学物質の濃度変化が発生する製造工程）を伴う製品に関する管理規定の有無と規定に基づく業務遂行状況】"]
[null,null,null,null,"変換工程を伴う製品に関する適切な製品含有化学物質管理の規定があり、その規定に基づき業務が遂行されていること。\n更には、最新状態の規定に基づいて業務が漏れなく実施され、業務遂行状況を組織内で管理する仕組みがあり、実行されていることが望ましい。"]
[null,null,null,"4.3.3.","トレーサビリティに関する業務管理規定の有無と規定に基づく業務遂行状況",null,"Q23."]
[null,null,null,null,"【点検項目：5.4.3.3 トレーサビリティに関する業務管理規定の有無と規定に基づく業務遂行状況】"]
[null,null,null,null,"自社製品に関わる製品含有化学物質管理情報の履歴管理のためのトレーサビリティに関する規定があり、その規定に基づき業務が遂行されていること。（例えば、材料・副資材等の購入・使用履歴を記録・保管し、追跡可能な状態にしておく等。）\n更には、最新状態の規定に基づいて業務が漏れなく実施され、業務遂行状況を組織内で管理する仕組みがあり、実行されていることが望ましい。"]
[null,null,null,"4.3.4.","工程・材料変更、工程異常（誤使用・異物混入含む）に対する管理基準･規定の有無と規定に基づく業務遂行状況",null,"Q24."]
[null,null,null,null,"【点検項目：5.4.3.4 工程・材料変更､工程異常（誤使用・異物混入含む）に対する管理基準･規定の有無と規定に基づく業務遂行状況】"]
[null,null,null,null,"工程・材料変更時の規定があり、その規定に基づき業務が遂行されていること。\n更には、最新状態の規定に基づいて業務が漏れなく実施され、業務遂行状況を組織内で管理する仕組みがあり、実行されていることが望ましい。"]
[null,null,"4.4.","自社内の出荷工程における製品含有化学物質管理"]
[null,null,null,"4.4.1.","出荷工程における業務手順・規定の有無と規定に基づく業務遂行状況",null,"Q25."]
[null,null,null,null,"【点検項目：5.4.4.1出荷工程における業務手順・規定の有無と規定に基づく業務遂行状況】"]
[null,null,null,null,"出荷基準に反映された、出荷工程における製品含有化学物質管理の規定があり、その規定に基づき業務が遂行されていること。\nまた、最新状態の規定に基づいて業務が漏れなく実施され、業務遂行状況を組織内で管理する仕組みがあり、実行されていることが望ましい。"]
[null,null,null,"4.4.2.",null,null,"Q26."]
[]
[]
[null,null,null,"4.4.3.",null,null,"Q27."]
[]
[]
[null,null,"4.5.","仕入れ先管理"]
[null,null,null,"4.5.1.","仕入先に対する製品含有化学物質の管理要求事項提示の仕組みの有無と実態",null,"Q28."]
[null,null,null,null,"【点検項目：5.4.5.1仕入れ先に対する製品含有化学物質の管理要求事項の提示の仕組みの有無と実態】"]
[null,null,null,null,"自社（組織）の製品含有化学物質管理基準の遵守に向け、各仕入れ先に対する管理要求事項を提示するための規定があり、その規定に基づき業務が遂行されていること。\n更には、最新状態の規定に基づいて業務が漏れなく実施され、業務遂行状況を組織内で管理する仕組みがあり、実行されていることが望ましい。"]
[null,null,null,"4.5.2.","仕入先における製品含有化学物質管理体制の確認に関する規定の有無と規定に基づく業務遂行状況",null,"Q29."]
[null,null,null,null,"【点検項目：5.4.5.2仕入れ先における製品含有化学物質管理体制の確認に関する規定の有無と規定に基づく業務遂行状況】"]
[null,null,null,null,"管理・報告すべき部品・材料の全ての仕入れ先について、仕入れ先の製品含有化学物質管理体制を確認するための規定があり、その規定に基づき業務が遂行されていること。\n更には、全ての仕入れ先に対し規定に従って定期的な管理状況の確認とエビデンスの確保、双方の組織トップマネジメントを含めた確認、実情に応じた改善活動を行うことが望ましい。"]
[null,null,"4.6.","その他自社内の各工程の製品含有化学物質管理における留意事項"]
[null,null,null,"4.6.1.","異常・不適合品発生時の手順・ルールの有無とルールに基づく業務遂行状況",null,"Q30."]
[null,null,null,null,"【点検項目：5.4.6.1 異常・不適合品発生時の手順・ルールの有無とルールに基づく業務遂行状況】"]
[null,null,null,null,"組織において、製品含有化学物質に関わる異常・不適合品発生時の対応（社内報告、処置等）の関する規定があり、その規定に基づき業務が遂行されていること。\n更には、最新状態の規定に基づく業務が漏れなく実施されており、その状況が確認・評価され、上位に報告、管理する仕組みがあり、実行されていることが望ましい。"]
[null,null,null,"4.6.2.","再発防止、水平展開を行う仕組みの有無と業務遂行状況",null,"Q31."]
[null,null,null,null,"【点検項目5.4.6.2 再発防止、水平展開を行う仕組みの有無と業務遂行状況】"]
[null,null,null,null,"不適合品に対し、適切な応急措置を行った後に、原因究明、暫定及び恒久対策、再発防止及び自社（組織）及び関連会社・組織への水平展開を行うための規定があり、その規定に基づく対応が行われていること。\n更には、最新状態の規定に基づく業務が漏れなく実施されており、その状況が確認・評価され、上位に報告、管理する仕組みがあり、実行されていることが望ましい。"]
[null,null,null,"4.6.3.",null,null,"Q32."]
[]
[]
[null,null,null,"4.6.4.",null,null,"Q33."]
[]
[]
[null,null,null,"4.6.5.",null,null,"Q34."]
[]
[]
[null,"5.","化学物質情報・データ管理及び適合確認業務運営"]
[null,null,"5.1.","全体運用"]
[null,null,null,"5.1.1.","製品含有化学物質管理に関わるデータ管理及び適合確認業務全体の運用に関わる規定の有無と業務遂行状況",null,"Q35."]
[null,null,null,null,"【点検項目：5.5.1.1製品含有化学物質管理に関わるデータ管理及び適合確認業務全体の運用に関わる規定の有無と業務遂行状況】"]
[null,null,null,null,"組織内の業務の流れに準じた規定があり、その規定に基づき業務が遂行されていること。\n更には、規定に基づく業務遂行が漏れなく実施されており、業務遂行状況を組織内で管理する仕組みがあり、実行されていることが望ましい。"]
[null,null,"5.2.","仕入れ先からのデータ入手と入手データの確認"]
[null,null,null,"5.2.1.","仕入れ先とのデータ授受（提出依頼、入手）に関するルールの有無と、ルールに基づく業務遂行状況",null,"Q36."]
[null,null,null,null,"【点検項目：5.5.2.1仕入れ先とのデータ授受（提出依頼、入手）に関するルールの有無とルールに基づく業務遂行状況】"]
[null,null,null,null,"組織内の業務の流れに準じたルールがあり、主要な仕入れ先・部品の入手データに対応できていること。\n更には、組織内の業務の流れに準じたルールがあり、全ての入手データに対しルールに基づく対応ができており、そのエビデンスを管理できていることが望ましい。"]
[null,null,null,"5.2.2.","仕入先から受領したデータに対する適合チェック及び不適合時の対応に関するルールの有無とルールに基づく業務遂行状況",null,"Q37."]
[null,null,null,null,"【点検項目：5.5.2.2 仕入れ先から受領したデータに対する適合チェック及び不適合時の対応に関するルールの有無とルールに基づく業務遂行状況】"]
[null,null,null,null,"組織内の業務の流れに準じたルールがあり、主要な入手データに対応できていること。\n更には、組織内の業務の流れに準じたルールがあり、全ての入手データに対しルールに基づく対応ができており、そのエビデンスを管理できていることが望ましい。"]
[null,null,null,"5.2.3.",null,null,"Q38."]
[]
[]
[null,null,"5.3.","自社製品のデータ作成"]
[null,null,null,"5.3.1.","（顧客に提出する）自社製品のデータ作成に関するルール・マニュアルの有無とルール・マニュアルに基づくデータ作成の状況",null,"Q39."]
[null,null,null,null,"【点検項目：5.5.3.1（顧客に提出する）自社製品のデータ作成に関するルール・マニュアルの有無とルール・マニュアルに基づくデータ作成の状況】"]
[null,null,null,null,"組織内の業務の流れに準じたルール・マニュアルがあり、主要なデータに対応できていること。\n更には、ルール・マニュアルがあり、全てのデータに対しルール・マニュアルに基づく対応ができており、そのエビデンスを管理できていることが望ましい。"]
[null,null,null,"5.3.2.","作成データにおける、自社製造工程内での変換工程の反映の有無とデータ作成状況",null,"Q40."]
[null,null,null,null,"【点検項目：5.5.3.2作成データにおける、自社製造工程内での変換工程の反映の有無とデータ作成状況】"]
[null,null,null,null,"組織内の業務の流れに準じたルール・マニュアルがあり、主要な作成データに対応できていること。\n更には、ルール・マニュアルがあり、全ての作成データに対しルール・マニュアルに基づく対応ができており、そのエビデンスを管理できていることが望ましい。"]
[null,null,"5.4.","納入先（顧客）へのデータ提出"]
[null,null,null,"5.4.1.","顧客に対するデータ提出に関するルールの有無とルールに基づくデータ提出の状況",null,"Q41."]
[null,null,null,null,"【点検項目：5.5.4.1顧客に対するデータ提出に関するルールの有無とルールに基づくデータ提出の状況】"]
[null,null,null,null,"納入先（顧客）へのデータ提出に関し、納入先（顧客）との取り決め事項も織り込まれたルールがあり、主要な顧客へ提出するデータに対応できていること。\n更には、全ての顧客へ提出するデータに対しルールに基づく対応ができており、そのエビデンスが管理できていることが望ましい。"]
[null,null,null,"5.4.2.","データ提出期限を守る仕組みの有無と提出期限内提出の状況",null,"Q42."]
[null,null,null,null,"【点検項目：5.5.4.2データ提出期限を守る仕組みの有無と提出期限内提出の状況】"]
[null,null,null,null,"納入先（顧客）へのデータ提出に関しデータ提出期限を守るための仕組みがあり、主要なデータは提出期限に遅れることなく提出できていること。\n更には、組織内の業務の流れに準じた仕組みがあり、全てのデータに対し仕組みに基づく対応ができており、そのエビデンスが管理できていることが望ましい。"]
[null,null,null,"5.4.3.","提出データが顧客にてReject（拒否判定）された場合の対応に関する手順の明確化の有無と実施状況",null,"Q43."]
[null,null,null,null,"【点検項目：5.5.4.3 提出データが顧客にてReject（拒否判定）された場合の対応に関する手順の明確化の有無と実施状況】"]
[null,null,null,null,"納入先（顧客）へのデータ提出に関し、納入先（顧客）にて提出データがRejectされた場合の対応に関わるマニュアルがあり、主要なデータに対応できていること。\n更には、組織内の業務の流れに準じたマニュアルがあり、全てのデータに対しマニュアルに基づく対応ができており、そのエビデンスが管理できていることが望ましい。"]
[null,null,"5.5.","データ保管"]
[null,null,null,"5.5.1.","入手したデータの保管ルールの有無とルールに基づく実施状況",null,"Q44."]
[null,null,null,null,"【点検項目：5.5.5.1入手したデータの保管ルールの有無とルールに基づく実施状況】"]
[null,null,null,null,"仕入れ先からの入手データの保管に関し、組織内の業務の流れに準じたルールがあり、主要な入手データに対応できていること。\n更には、組織内の業務の流れに準じたルールがあり、全ての入手データに対しルールに基づく対応ができており、そのエビデンスが管理できていることが望ましい。"]
[null,null,null,"5.5.2.","顧客へ提出したデータの保管ルールの有無とルールに基づく実施状況",null,"Q45."]
[null,null,null,null,"【点検項目：5.5.5.2 顧客へ提出したデータの保管ルールの有無とルールに基づく実施状況】"]
[null,null,null,null,"納入先（顧客）への提出データの保管に関し、組織内の業務の流れに準じたルールがあり、主要な提出データに対応できていること。\n更には、組織内の業務の流れに準じたルールがあり、全ての提出データに対しルールに基づく対応ができており、そのエビデンスが管理できていることが望ましい。"]
[null,null,"5.6.","データ更新"]
[null,null,null,"5.6.1.","法規および顧客の基準の変更時のデータ更新（作成・提出・保管）に関する規定の有無と規定に基づく実施状況",null,"Q46."]
[null,null,null,null,"【点検項目：5.5.6.1法規および顧客の基準の変更時のデータ更新（作成・提出・保管）に関する規定の有無と規定に基づく実施状況】"]
[null,null,null,null,"保管データ（入手・提出）の更新に関する規定があり、主要なデータに対応できていること。\n更には、組織内の業務の流れに準じた規定があり、全てのデータに対し規定に基づく対応ができており、そのエビデンスが管理できていることが望ましい。"]
[null,"6.","人的資源および文書・情報の管理"]
[null,null,"6.1.","教育・人材育成"]
[null,null,null,"6.1.1.","製品含有化学物質管理業務の持続性維持のための仕組み（能力要件、伝承、社内教育）の有無と実態",null,"Q47."]
[null,null,null,null,"【点検項目：5.6.1.1 製品含有化学物質管理業務の持続性維持のための仕組み（能力要件、伝承、社内教育）の有無と実態】"]
[null,null,null,null,"製品含有化学物質管理業務の持続性維持のための規定があり、定期的（計画的）な教育等ができていること。\n更には、規定があり、製品含有化学物質管理の業務実施能力を向上・維持するための長期的なビジョンとともに対応ができていることが望ましい。"]
[null,null,null,"6.1.2.",null,null,"Q48."]
[]
[]
[null,null,"6.2.","文書（製品含有化学物質管理に係る各種の情報、記録）の管理"]
[null,null,null,"6.2.1.","記録管理に関する規定（手順書、マニュアル）の有無と管理の実態",null,"Q49."]
[null,null,null,null,"【点検項目：5.6.2.1記録管理に関する規定（手順書、マニュアル）の有無と管理の実態】"]
[null,null,null,null,"製品含有化学物質管理のために本ガイドラインが推奨する情報が文書化され保管、定期的な見直し、社内関係部署への展開がされ、またそれらを可能とする規定があり、その規定に基づき業務が遂行されていること。\n更には、規定に基づく業務遂行が漏れなく実施されており、業務遂行状況を組織内で管理する仕組みがあり、実行されていることが望ましい。"]
[null,null,"6.3.","教育（5.6.1）、文書管理（5.6.2）の実施状況の評価及び改善"]
[null,null,null,"6.3.1.","実施状況の評価及び改善をする規定の有無と実態",null,"Q50."]
[null,null,null,null,"【点検項目：5.6.3.1実施状況の評価及び改善をする規定の有無と実態】"]
[null,null,null,null,"実施状況の評価・改善に関する規定があり、その規定に基づき業務が遂行されていること。\n更には、規定に基づく業務遂行が漏れなく実施されており、業務遂行状況を組織内で管理する仕組みがあり、実行されていることが望ましい。"]

{"sheet":"回答者情報","index":3,"n_rows":15,"n_cols":5,"rows_kept":15,"cut":false,"hidden":true,"merged":[[2,1,2,3],[3,1,3,3],[4,1,4,3],[5,1,9,1],[10,1,14,1],[6,2,9,2],[11,2,14,2],[5,2,5,3],[10,2,10,3]]}
[]
[]
[null,"仕入れ先コード（任意）",null,null,{"$f":"IF(入力フォーム!I9=\"\",\"\",入力フォーム!I9)","v":""}]
[null,"会社名",null,null,{"$f":"IF(入力フォーム!I10=\"\",\"\",入力フォーム!I10)","v":""}]
[null,"組織名",null,null,{"$f":"IF(入力フォーム!I11=\"\",\"\",入力フォーム!I11)","v":""}]
[null,"製品含有化学物質管理業務（環境業務）","責任者部署",null,{"$f":"IF(入力フォーム!I12=\"\",\"\",入力フォーム!I12)","v":""}]
[null,null,"責任者様情報","役職",{"$f":"IF(入力フォーム!I13=\"\",\"\",入力フォーム!I13)","v":""}]
[null,null,null,"ご芳名",{"$f":"IF(入力フォーム!I14=\"\",\"\",入力フォーム!I14)","v":""}]
[null,null,null,"電話番号",{"$f":"IF(入力フォーム!I15=\"\",\"\",入力フォーム!I15)","v":""}]
[null,null,null,"E-mail",{"$f":"IF(入力フォーム!I16=\"\",\"\",入力フォーム!I16)","v":""}]
[null,"担当部署","回答部署",null,{"$f":"IF(入力フォーム!I17=\"\",\"\",入力フォーム!I17)","v":""}]
[null,null,"担当者様情報","役職",{"$f":"IF(入力フォーム!I18=\"\",\"\",入力フォーム!I18)","v":""}]
[null,null,null,"ご芳名",{"$f":"IF(入力フォーム!I19=\"\",\"\",入力フォーム!I19)","v":""}]
[null,null,null,"電話番号",{"$f":"IF(入力フォーム!I20=\"\",\"\",入力フォーム!I20)","v":""}]
[null,null,null,"E-mail",{"$f":"IF(入力フォーム!I21=\"\",\"\",入力フォーム!I21)","v":""}]

{"sheet":"事前設問","index":4,"n_rows":33,"n_cols":11,"rows_kept":33,"cut":false,"hidden":true,"merged":[[2,3,7,4],[2,8,3,8],[10,8,13,8],[10,3,14,4],[8,3,9,4]]}
[]
[null,null,"事前設問項目",null,null,null,"回答","Yes の場合、具体的な事例"]
[null,null,1,"納入製品・取引内容に関する確認",null,"現在量産中の製品に対し、部品または材料を納入している","未回答",{"$f":"IF(入力フォーム!I28<>\"\",入力フォーム!I28,\"\")","v":""},"マクロ：No　⇒　そもそも本チェックシートの対象外",null,{"$f":"IF(入力フォーム!L28<>\"\",入力フォーム!L28,\"\")","v":""}]
[null,null,2,null,null,"旧型補給用（量産終了後）の部品、材料を納入している","未回答",{"$f":"IF(入力フォーム!I31<>\"\",入力フォーム!I31,\"\")","v":""},null,null,{"$f":"IF(入力フォーム!L29<>\"\",入力フォーム!L29,\"\")","v":""}]
[null,null,3,null,null,"試作部品を納入している","未回答",{"$f":"IF(入力フォーム!I34<>\"\",入力フォーム!I34,\"\")","v":""},null,null,{"$f":"IF(入力フォーム!L30<>\"\",入力フォーム!L30,\"\")","v":"C2."}]
[null,null,4,null,null,"工場設備や工場副資材を納入している","未回答",{"$f":"IF(入力フォーム!I37<>\"\",入力フォーム!I37,\"\")","v":""},null,null,{"$f":"IF(入力フォーム!L31<>\"\",入力フォーム!L31,\"\")","v":""}]
[null,null,5,null,null,"部品・材料の製造、納入は行っているが、対応する設計・開発は行っていない","未回答",{"$f":"IF(入力フォーム!I40<>\"\",入力フォーム!I40,\"\")","v":""},"マクロ：Yes　⇒　回答不要設問",null,{"$f":"IF(入力フォーム!L32<>\"\",入力フォーム!L32,\"\")","v":""}]
[null,null,6,null,null,"実際の部品・材料の製造は行わず、商社・代理店として納入している","未回答",{"$f":"IF(入力フォーム!I43<>\"\",入力フォーム!I43,\"\")","v":""},"マクロ：Yes　⇒　かなりの部分がスキップできる？　商社に何を期待するか？　JAMPガイドラインも参考に別途検討",null,{"$f":"IF(入力フォーム!L33<>\"\",入力フォーム!L33,\"\")","v":"C3."}]
[null,null,7,"事業形態に関する確認",null,"自社製造工程中にガイドライン表4.1に示す、変換工程（化学品から部品・製品を製造する工程）がある","未回答",{"$f":"IF(入力フォーム!I47<>\"\",入力フォーム!I47,\"\")","v":""},"マクロ：No　⇒　回答不要設問",null,{"$f":"IF(入力フォーム!L34<>\"\",入力フォーム!L34,\"\")","v":""}]
[null,null,8,null,null,"子会社・海外子会社がありますか？","未回答",{"$f":"IF(入力フォーム!I50<>\"\",入力フォーム!I50,\"\")","v":""},"マクロ：No　⇒　回答不要設問",null,{"$f":"IF(入力フォーム!L35<>\"\",入力フォーム!L35,\"\")","v":""}]
[null,null,9,"管理状況に関する基本事項",null,"業界標準の製品含有物質情報伝達ツール（IMDS・JAMAシート・JAPIAシート・AISシート・chemSHELPA等）を使用していますか？","未回答",{"$f":"IF(入力フォーム!I54<>\"\",入力フォーム!I54,\"\")","v":""},"この部分も何らかのマクロをかけて、下記設問との整合性を確保したほうが良いようにも思いますが・・",null,{"$f":"IF(入力フォーム!L36<>\"\",入力フォーム!L36,\"\")","v":"C4."}]
[null,null,10,null,null,"各ツールにおける管理基準（GADSLなど）の最新版を適用していますか？","未回答",{"$f":"IF(入力フォーム!I57<>\"\",入力フォーム!I57,\"\")","v":""},null,null,{"$f":"IF(入力フォーム!L37<>\"\",入力フォーム!L37,\"\")","v":""}]
[null,null,11,null,null,"顧客管理基準の最新版(ない場合は最新のGADSL)を使用していますか？","未回答",{"$f":"IF(入力フォーム!I60<>\"\",入力フォーム!I60,\"\")","v":""},null,null,{"$f":"IF(入力フォーム!L38<>\"\",入力フォーム!L38,\"\")","v":""}]
[null,null,12,null,null,"顧客設定のIMDSマニュアル(ない場合はIMDSトレーニングマニュアル)の最新版を参照していますか?","未回答",{"$f":"IF(入力フォーム!I63<>\"\",入力フォーム!I63,\"\")","v":""},null,null,{"$f":"IF(入力フォーム!L39<>\"\",入力フォーム!L39,\"\")","v":"C5."}]
[null,null,13,null,null,"資本金3億円以下、または従業員数が300人以下である","未回答",{"$f":"IF(入力フォーム!I66<>\"\",入力フォーム!I66,\"\")","v":""},null,null,{"$f":"IF(入力フォーム!L40<>\"\",入力フォーム!L40,\"\")","v":""}]
[null,null,null,null,null,null,null,null,null,null,{"$f":"IF(入力フォーム!L40<>\"\",入力フォーム!L40,\"\")","v":""}]
[null,null,null,null,null,null,null,null,null,null,{"$f":"IF(入力フォーム!L41<>\"\",入力フォーム!L41,\"\")","v":""}]
[null,null,null,null,null,null,null,null,null,null,{"$f":"IF(入力フォーム!L42<>\"\",入力フォーム!L42,\"\")","v":"C6."}]
[null,null,null,null,null,null,null,null,null,null,{"$f":"IF(入力フォーム!L43<>\"\",入力フォーム!L43,\"\")","v":""}]
[null,null,null,null,null,null,null,null,null,null,{"$f":"IF(入力フォーム!L44<>\"\",入力フォーム!L44,\"\")","v":""}]
[null,null,null,null,null,null,null,null,null,null,{"$f":"IF(入力フォーム!L45<>\"\",入力フォーム!L45,\"\")","v":""}]
[null,null,null,null,null,null,null,null,null,null,{"$f":"IF(入力フォーム!L46<>\"\",入力フォーム!L46,\"\")","v":"C7."}]
[null,null,null,null,null,null,null,null,null,null,{"$f":"IF(入力フォーム!L47<>\"\",入力フォーム!L47,\"\")","v":""}]
[null,null,null,null,null,null,null,null,null,null,{"$f":"IF(入力フォーム!L48<>\"\",入力フォーム!L48,\"\")","v":""}]
[null,null,null,null,null,null,null,null,null,null,{"$f":"IF(入力フォーム!L49<>\"\",入力フォーム!L49,\"\")","v":"C8."}]
[null,null,null,null,null,null,null,null,null,null,{"$f":"IF(入力フォーム!L50<>\"\",入力フォーム!L50,\"\")","v":""}]
[null,null,null,null,null,null,null,null,null,null,{"$f":"IF(入力フォーム!L51<>\"\",入力フォーム!L51,\"\")","v":""}]
[null,null,null,null,null,null,null,null,null,null,{"$f":"IF(入力フォーム!L52<>\"\",入力フォーム!L52,\"\")","v":""}]
[null,null,null,null,null,null,null,null,null,null,{"$f":"IF(入力フォーム!L53<>\"\",入力フォーム!L53,\"\")","v":"C9."}]
[null,null,null,null,null,null,null,null,null,null,{"$f":"IF(入力フォーム!L54<>\"\",入力フォーム!L54,\"\")","v":""}]
[null,null,null,null,null,null,null,null,null,null,{"$f":"IF(入力フォーム!L55<>\"\",入力フォーム!L55,\"\")","v":""}]
[null,null,null,null,null,null,null,null,null,null,{"$f":"IF(入力フォーム!L56<>\"\",入力フォーム!L56,\"\")","v":"C10."}]
[null,null,null,null,null,null,null,null,null,null,{"$f":"IF(入力フォーム!L57<>\"\",入力フォーム!L57,\"\")","v":""}]

{"sheet":"設問及び配点項目","index":5,"n_rows":60,"n_cols":25,"rows_kept":60,"cut":false,"hidden":false,"merged":[[2,11,3,15],[2,0,3,1],[2,3,4,4],[2,5,4,6],[2,7,4,8],[2,9,3,10],[58,3,59,3],[58,4,58,6],[59,4,59,6],[58,7,58,10],[59,7,59,10]]}
[]
[{"$f":"SUM(A6:A55)","v":100},{"$f":"SUM(B6:B55)","v":100}]
["WF",null,null,"大区分",null,"中区分",null,"小区分",null,"結果",null,"回答方法",null,null,null,null,null,null,null,null,null,"有無素点","有無スコア","実施状況素点","実施状況スコア"]
[]
["仕組み","実施状況",null,null,null,null,null,null,null,"仕組み構築レベル","実施レベル",1,2,3,4,5,null,null,"有無満点","実施満点","今回",{"$f":"SUM(Q6:Q55)","v":0},{"$f":"V5/SUM(S6:S55)*100","v":0},{"$f":"SUM(R6:R55)","v":0},{"$f":"X5/SUM(T6:T55)*100","v":0}]
[3,3,1,1,"組織の状態とマネジメントシステム",1.1000000000000001,"マネジメントシステム","1.1.1","マネジメントシステム（ISO14001の取得 もしくは その他環境関連規格（簡易EMS））の取得と実態","未回答",null,"マネジメントシステムを取得していない","マネジメントシステムを取得しているが、その後の維持管理の仕組みがない","不定期ではあるが、取得した基準に基づく対応を実施している","維持管理のために、社内における内部監査を定期的に実施している","維持管理のために、内部監査と外部監査を定期的に実施している",{"$f":"IF(J6=\"有\",A6,\"\")","v":""},{"$f":"IF(ISNUMBER(K6),K6/5*B6,\"\")","v":""},{"$f":"IF(OR(J6=\"無効\",J6=\"\"),0,A6)","v":3},{"$f":"IF(OR(J6=\"無効\",J6=\"\"),0,B6)","v":3},{"$f":"D6&\"_\"&E6","v":"1_組織の状態とマネジメントシステム"},{"$f":"SUM(Q6:Q10)","v":0},{"$f":"V6/SUM(S6:S10)*100","v":0},{"$f":"SUM(R6:R10)","v":0},{"$f":"X6/SUM(T6:T10)*100","v":0}]
[0,0,2,null,"",null,"","1.1.2","NQ","無効","無効",null,null,null,null,null,{"$f":"IF(J7=\"有\",A7,\"\")","v":""},{"$f":"IF(ISNUMBER(K7),K7/5*B7,\"\")","v":""},{"$f":"IF(OR(J7=\"無効\",J7=\"\"),0,A7)","v":0},{"$f":"IF(OR(J7=\"無効\",J7=\"\"),0,B7)","v":0}]
[0,0,3,null,"",null,"","1.1.3","NQ","無効","無効",null,null,null,null,null,"","",0,0]
[0,0,4,null,"",null,"","1.1.4","NQ","無効","無効",null,null,null,null,null,"","",0,0]
[0,0,5,null,"",null,"","1.1.5","NQ","無効","無効",null,null,null,null,null,"","",0,0]
[2,2,6,2,"基本方針・管理体制",2.1,"製品含有化学物質に関する基本方針","2.1.1","製品含有化学物質管理に関する方針の有無とその社内（組織内）、社外への展開状況","未回答",null,"製品含有化学物質管理に関する方針がない","実務担当部署としての方針はあるが、会社（組織）方針にはなっていない","会社（組織）方針として設定され、社内（組織内）展開、社外への公表が行われている","方針は定期的に見直し、更新が行われ、その内容が社内（組織内）に公表されている","方針は定期的に見直し、更新が行われ、その内容が社内（組織内）だけでなく社外にも公表されている","","",2,2,{"$f":"D11&\"_\"&E11","v":"2_基本方針・管理体制"},{"$f":"SUM(Q11:Q15)","v":0},{"$f":"V11/SUM(S11:S15)*100","v":0},{"$f":"SUM(R11:R15)","v":0},{"$f":"X11/SUM(T11:T15)*100","v":0}]
[0,0,7,null,"",null,"","2.1.2","NQ","無効","無効",null,null,null,null,null,"","",0,0]
[3,3,8,null,"",2.2000000000000002,"製品含有化学物質管理体制","2.2.1","会社（組織）における製品含有化学物質管理体制の有無とその実態","未回答",null,"会社（組織）における製品含有化学物質管理体制がない","会社（組織）における製品含有化学物質管理体制が存在するが、規定になっていない","会社（組織）における製品含有化学物質管理体制が記載された規定があり、業務が実施されている","規定に基づき業務が確実に遂行されており、また規定の定期的な見直し、改訂を行う仕組みがあり、実施されている","最新状態の規定に基づいた社内関連業務の管理、運営の実態を評価、確認する仕組みがあり、実行されている（上位報告体、社内監査など）","","",3,3]
[2,2,9,null,"",2.2999999999999998,"国内子会社、海外子会社、社外委託先に対するガバナンス","2.3.1","国内子会社、海外子会社、社外委託先に対するガバナンス及び管理体制の確立とその実態","未回答",null,"国内子会社、海外子会社、社外委託先に対するガバナンス及び管理体制がない","国内子会社、海外子会社、社外委託先に対する管理体制を記載した規定は無いが、双方が合意した体制がある","国内子会社、海外子会社、社外委託先に対する管理体制を記載した規定があり、業務が実施されている","規定に基づき業務が確実に遂行されており、また規定の定期的な見直し、改訂を行う仕組みがあり、実施されている","最新状態の規定に基づいた社内関連業務の管理、運営の実態を評価、確認する仕組みがあり、評価・確認されている","","",2,2]
[0,0,10,null,"",null,"","2.3.2","NQ","無効","無効",null,null,null,null,null,"","",0,0]
[3,3,11,3,"製品含有化学物質管理の遂行",3.1,"製品含有化学物質管理基準","3.1.1","製品含有化学物質管理基準（守るべき法規制・管理対象物質・管理方法 等)の有無","未回答",null,"製品含有化学物質管理基準がない","業務実務担当部署としての基準はあるが、会社（組織）で合意された基準にはなっていない","会社（組織）で合意された基準があり、社内（組織内）展開、社外への公表が行われている","社内外の全ての関係先に展開、周知徹底できており、定期的な基準の見直しを行っている","社内外の全ての関係先が最新版の基準に準じた対応ができていることを確認できている","","",3,3,{"$f":"D16&\"_\"&E16","v":"3_製品含有化学物質管理の遂行"},{"$f":"SUM(Q16:Q22)","v":0},{"$f":"V16/SUM(S16:S22)*100","v":0},{"$f":"SUM(R16:R22)","v":0},{"$f":"X16/SUM(T16:T22)*100","v":0}]
[3,3,12,null,"",3.2,"確実な製品含有化学物質管理業務遂行の為の役割分担及び業務手順の規定","3.2.1","製品含有化学物質管理業務遂行の為の役割分担・業務手順を記載した規定の有無と、その実態","未回答",null,"製品含有化学物質管理体制に基づいた業務遂行の役割分担と業務手順を記載したルールがない","規定はないが、関係部署間で合意されたルールとして明確化され、ルールに基づき業務が実施されている","担当部署の役割分担及び業務手順が記載された規定と、製品含有化学物質管理体制に基づいた業務遂行状況を確認する会議体がある","規定と業務遂行状況を確認する会議体があり、定期的に会議体を開催し、規定の見直し、改訂を行う仕組みがあり、実施されている","規定と業務遂行状況を確認する会議体があり、定期的に会議体を開催し、運営の実態を評価、確認する仕組みがあり、評価・確認されている","","",3,3]
[0,0,13,null,"",null,"","3.2.2","NQ","無効","無効",null,null,null,null,null,"","",0,0]
[3,3,14,null,"",3.3,"目標及び実施計画","3.3.1","設問2.1.1の方針に基づく目標および目標達成のための実施計画の有無と、計画に基づく業務遂行状況","未回答",null,"目標および目標達成のための実施計画がない","方針に基づく目標はあるが、目標達成に向けた実施計画がない","目標および目標達成に向けた実施計画があり、実行されている","目標、目標達成に向けた実施計画に基づき業務が推進され、実施状況の確認、見直しがなされている","目標、目標達成に向けた実施計画、業務遂行状況が管理され、上位への報告、承認がなされている","","",3,3]
[3,3,15,null,"",3.4,"顧客の製品含有化学物質管理に関する仕組み","3.4.1","製品含有化学物質管理に係る各種業務（IMDS、基準、各種調査等）の自社の窓口部署、担当者情報の維持管理及び顧客への伝達の状況","未回答",null,"自社の窓口部署、担当者情報の維持管理および顧客への伝達ができていない","規定はないが、関係部署間で合意されたルールとして明確化され、ルールに基づき伝達している","自社の窓口部署、担当者情報の顧客への伝達に関する規定があり、顧客に伝達できている","規定に基づき自社の窓口部署、担当者情報の変更を顧客に伝達できている","規定に基づき自社の窓口部署、担当者情報を伝達し、伝達状況を管理できている","","",3,3]
[3,3,16,null,"",null,"","3.4.2","顧客の製品含有化学物質管理規定への対応状況","未回答",null,"顧客の製品含有化学物質管理規定に対応できていない","顧客の製品含有化学物質管理規定は個別に対応し、社内の製品含有化学物質管理に関する規定または基準に反映していない","顧客の製品含有化学物質管理規定は個別に対応し、必要に応じて社内の製品含有化学物質管理に関する規定または基準に反映している","顧客の製品含有化学物質管理規定を、社内の製品含有化学物質管理に関する規定または基準へ1回／年以上の頻度で反映している","顧客の製品含有化学物質管理規定を、社内の製品含有化学物質管理に関する規定または基準へ反映し、適合しているか確認できている","","",3,3]
[0,0,17,null,"",null,"","3.4.3","NQ","無効","無効",null,null,null,null,null,"","",0,0]
[3,3,18,4,"製品含有化学物質管理業務の運営",4.0999999999999996,"設計・開発における製品含有化学物質管理","4.1.1","業務管理規定の有無と、規定に基づく業務遂行・管理状況","未回答",null,"業務管理規定がない","規定はないが、関係部署間で合意されたルールがあり、その内容に基づき業務を遂行している","規定があり、規定に基づき業務が遂行されている","規定に基づき業務が遂行されており、上記の規定の維持管理、見直しの仕組みがあり、常に最新状態の業務規定を業務に適用している","最新状態の規定に基づいて業務が漏れなく実施され、業務遂行状況を組織内で管理する仕組みがあり、実行されている","","",3,3,{"$f":"D23&\"_\"&E23","v":"4_製品含有化学物質管理業務の運営"},{"$f":"SUM(Q23:Q39)","v":0},{"$f":"V23/SUM(S23:S39)*100","v":0},{"$f":"SUM(R23:R39)","v":0},{"$f":"X23/SUM(T23:T39)*100","v":0}]
[3,3,19,null,"",4.2,"部品・材料の購入、受け入れ時における製品含有化学物質管理","4.2.1","製品含有化学物質情報の仕入先からの入手・確認に関する規定の有無と規定に基づく業務遂行状況","未回答",null,"仕入先から製品含有化学物質情報を入手・確認する規定がない","規定はないが、関係部署間で合意されたルールがあり、その内容に基づき業務を遂行している","規定の中で管理すべき部品・材料について、情報の入手・確認・管理の担当者と方法が文書化され、規定に基づき業務が遂行されている","規定に基づき業務が遂行されており、上記の規定の維持管理、見直しの仕組みがあり、常に最新状態の業務規定を業務に適用している","最新状態の規定に基づいて業務が漏れなく実施され、業務遂行状況を組織内で管理する仕組みがあり、実行されている","","",3,3]
[3,3,20,null,"",null,"","4.2.2","初品/日常受け入れ時における製品含有化学物質管理に関する規定の有無と規定に基づく業務遂行状況","未回答",null,"初品/日常受け入れ時における製品含有化学物質管理に関する規定がない","規定はないが、関係部署間で合意されたルールがあり、その内容に基づき業務を遂行している","規定の中で、仕入先からの初品/日常受け入れ時に、製品含有化学物質に関わる管理の仕組みが文書化され、規定に基づき業務が遂行されている","規定に基づき業務が遂行されており、上記の規定の維持管理、見直しの仕組みがあり、常に最新状態の業務規定を業務に適用している","最新状態の規定に基づいて業務が漏れなく実施され、業務遂行状況を組織内で管理する仕組みがあり、実行されている","","",3,3]
[3,3,21,null,"",4.3,"自社内の製造工程における製品含有化学物質管理","4.3.1","製造工程における管理基準が記載された規定の有無と規定に基づく業務遂行状況","未回答",null,"製造工程における管理基準が記載された規定がない","規定はないが、関係部署間で合意されたルールがあり、その内容に基づき業務を遂行している","規定があり、その規定に基づき業務が遂行されている","規定に基づき業務が遂行されており、上記の規定の維持管理、見直しの仕組みがあり、常に最新状態の業務規定を業務に適用している","最新状態の規定に基づいて業務が漏れなく実施され、業務遂行状況を組織内で管理する仕組みがあり、実行されている","","",3,3]
[3,3,22,null,"",null,"","4.3.2","変換工程（酸化反応、還元反応などによる化学物質の組成変化、濃縮、蒸発などによる化学物質の濃度変化が発生する製造工程）を伴う製品に関する管理規定の有無と規定に基づく業務遂行状況","未回答",null,"変換工程を伴う製品に関する管理規定がない","規定はないが、関係部署間で合意されたルールがあり、その内容に基づき業務を遂行している","規定があり、その規定に基づき業務が遂行されている","規定に基づき業務が遂行されており、上記の規定の維持管理、見直しの仕組みがあり、常に最新状態の業務規定を業務に適用している","最新状態の規定に基づいて業務が漏れなく実施され、業務遂行状況を組織内で管理する仕組みがあり、実行されている","","",3,3]
[3,3,23,null,"",null,"","4.3.3","トレーサビリティに関する業務管理規定の有無と規定に基づく業務遂行状況","未回答",null,"トレーサビリティに関する業務管理の規定がない","規定はないが、関係部署間で合意されたルールがあり、その内容に基づき業務を遂行している","規定があり、その規定に基づき業務が遂行されている","規定に基づき業務が遂行されており、上記の規定の維持管理、見直しの仕組みがあり、常に最新状態の業務規定を業務に適用している","最新状態の規定に基づいて業務が漏れなく実施され、業務遂行状況を組織内で管理する仕組みがあり、実行されている","","",3,3]
[3,3,24,null,"",null,"","4.3.4","工程・材料変更、工程異常（誤使用・異物混入含む）に対する管理基準･規定の有無と規定に基づく業務遂行状況","未回答",null,"工程・材料変更、工程異常（誤使用・異物混入含む）に対する管理基準が記載された規定がない","規定はないが、関係部署間で合意されたルールがあり、その内容に基づき業務を遂行している","規定があり、その規定に基づき業務が遂行されている","規定に基づき業務が遂行されており、上記の規定の維持管理、見直しの仕組みがあり、常に最新状態の業務規定を業務に適用している","最新状態の規定に基づいて業務が漏れなく実施され、業務遂行状況を組織内で管理する仕組みがあり、実行されている","","",3,3]
[3,3,25,null,"",4.4000000000000004,"自社内の出荷工程における製品含有化学物質管理","4.4.1","出荷工程における業務手順・規定の有無と規定に基づく業務遂行状況","未回答",null,"出荷工程における業務手順・管理基準がない","規定はないが、関係部署間で合意されたルールがあり、その内容に基づき業務を遂行している","規定があり、その規定に基づき業務が遂行されている","規定に基づき業務が遂行されており、上記の規定の維持管理、見直しの仕組みがあり、常に最新状態の業務規定を業務に適用している","最新状態の規定に基づいて業務が漏れなく実施され、業務遂行状況を組織内で管理する仕組みがあり、実行されている","","",3,3]
[0,0,26,null,"",null,"","4.4.2","NQ","無効","無効",null,null,null,null,null,"","",0,0]
[0,0,27,null,"",null,"","4.4.3","NQ","無効","無効",null,null,null,null,null,"","",0,0]
[3,3,28,null,"",4.5,"仕入れ先管理","4.5.1","仕入先に対する製品含有化学物質の管理要求事項提示の仕組みの有無と実態","未回答",null,"仕入先に対して製品含有化学物質の管理要求事項を提示する仕組みがない","規定はないが、関係部署間で合意された仕組みがあり、その内容に基づき業務を遂行している","規定があり、その規定に基づき業務が遂行されている","規定に基づき業務が遂行されており、上記の規定の維持管理、見直しの仕組みがあり、常に最新状態の業務規定を業務に適用している","最新状態の規定に基づいて業務が漏れなく実施され、業務遂行状況を組織内で管理する仕組みがあり、実行されている","","",3,3]
[3,3,29,null,"",null,"","4.5.2","仕入先における製品含有化学物質管理体制の確認に関する規定の有無と規定に基づく業務遂行状況","未回答",null,"仕入先の製品含有化学物質管理体制を確認する仕組みがない","規定はないが、関係部署間で合意された仕組みがあり、その内容に基づき業務を遂行している","規定があり、その規定に基づき業務が遂行されている","規定に基づき業務が遂行されており、上記の規定の維持管理、見直しの仕組みがあり、常に最新状態の業務規定を業務に適用している","全ての仕入れ先に対し規定に従って定期的な管理状況の確認とエビデンスの確保、双方の組織トップマネジメントを含めた確認、実情に応じた改善活動を行っている","","",3,3]
[3,3,30,null,"",4.5999999999999996,"その他自社内の各工程の製品含有化学物質管理における留意事項","4.6.1","異常・不適合品発生時の手順・ルールの有無とルールに基づく業務遂行状況","未回答",null,"異常・ 不適合品発生時の対処手順・ルールがない","規定はないが、関係部署間で合意されたルールがあり、その内容に基づき業務を遂行している","規定があり、その規定に基づき業務が遂行されている","規定に基づき業務が遂行されており、上記の規定の維持管理、見直しの仕組みがあり、常に最新状態の業務規定を業務に適用している","最新状態の規定に基づく業務が漏れなく実施されており、その状況が確認・評価され、上位に報告、管理する仕組みがあり、実行されている","","",3,3]
[3,3,31,null,"",null,"","4.6.2","再発防止、水平展開を行う仕組みの有無と業務遂行状況","未回答",null,"再発防止、水平展開を行う仕組みがない","規定はないが、関係部署間での合意された仕組みがあり、業務が遂行されている","規定があり、その規定に基づく対応が行われている","規定に基づき業務が遂行されており、その規定の維持管理、見直しの仕組みがあり、常に最新状態のルールを業務に適用している","最新状態の規定に基づく業務が漏れなく実施されており、その状況が確認・評価され、上位に報告、管理する仕組みがあり、実行されている","","",3,3]
[0,0,32,null,"",null,"","4.6.3","NQ","無効","無効",null,null,null,null,null,"","",0,0]
[0,0,33,null,"",null,"","4.6.4","NQ","無効","無効",null,null,null,null,null,"","",0,0]
[0,0,34,null,"",null,"","4.6.5","NQ","無効","無効",null,null,null,null,null,"","",0,0]
[3,3,35,5,"化学物質情報・データ管理及び適合確認業務運営",5.0999999999999996,"全体運用","5.1.1","製品含有化学物質管理に関わるデータ管理及び適合確認業務全体の運用に関わる規定の有無と業務遂行状況","未回答",null,"製品含有化学物質データの管理及び適合確認業務全体の運用に関わる仕組みがない","規定はないが、関係部署間で合意された仕組みがあり、その内容に基づき業務を遂行している","規定があり、その規定に基づき業務が遂行されている","規定に基づき業務が遂行されており、上記の規定の維持管理、見直しの仕組みがあり、常に最新状態の業務規定を業務に適用している","規定に基づく業務遂行が漏れなく実施されており、業務遂行状況を組織内で管理する仕組みがあり、実行されている","","",3,3,{"$f":"D40&\"_\"&E40","v":"5_化学物質情報・データ管理及び適合確認業務運営"},{"$f":"SUM(Q40:Q51)","v":0},{"$f":"V40/SUM(S40:S51)*100","v":0},{"$f":"SUM(R40:R51)","v":0},{"$f":"X40/SUM(T40:T51)*100","v":0}]
[3,3,36,null,"",5.2,"仕入れ先からのデータ入手と入手データの確認","5.2.1","仕入れ先とのデータ授受（提出依頼、入手）に関するルールの有無と、ルールに基づく業務遂行状況","未回答",null,"仕入れ先とのデータ授受（提出依頼、入手）に関するルールがない","ルールがあるが、それらに基づく業務が実施できていない","組織内の業務の流れに準じたルールがあり、主要な仕入れ先・部品の入手データに対応できている","組織内の業務の流れに準じたルールがあり、全ての仕入れ先・部品の入手データに対応できている","組織内の業務の流れに準じたルールがあり、全ての入手データに対しルールに基づく対応ができており、そのエビデンスを管理できている","","",3,3]
[3,3,37,null,"",null,"","5.2.2","仕入先から受領したデータに対する適合チェック及び不適合時の対応に関するルールの有無とルールに基づく業務遂行状況","未回答",null,"受領したデータに対する適合チェック及び不適合時の対応に関するルールがない","ルールはあるが、それらに基づく業務が実施できていない","組織内の業務の流れに準じたルールがあり、主要な入手データに対応できている","組織内の業務の流れに準じたルールがあり、全ての入手データに対応できている","組織内の業務の流れに準じたルールがあり、全ての入手データに対しルールに基づく対応ができており、そのエビデンスを管理できている","","",3,3]
[0,0,38,null,"",null,"","5.2.3","NQ","無効","無効",null,null,null,null,null,"","",0,0]
[3,3,39,null,"",5.3,"自社製品のデータ作成","5.3.1","（顧客に提出する）自社製品のデータ作成に関するルール・マニュアルの有無とルール・マニュアルに基づくデータ作成の状況","未回答",null,"（顧客に提出する）自社製品のデータ作成に関するルール・マニュアルがない","ルール・マニュアルはあるが、それらに基づく業務が実施できていない","ルール・マニュアルがあり、主要なデータに対応できている","ルール・マニュアルがあり、全てのデータに対応できている","ルール・マニュアルがあり、全ての入手データに対しルール・マニュアルに基づく対応ができており、そのエビデンスを管理できている","","",3,3]
[3,3,40,null,"",null,"","5.3.2","作成データにおける、自社製造工程内での変換工程の反映の有無とデータ作成状況","未回答",null,"作成データにおける、自社製造工程内での変換工程の反映を行うルール・マニュアルがない","ルール・マニュアルはあるが、それらに基づく業務が実施できていない","ルール・マニュアルがあり、主要な作成データに対応できている","ルール・マニュアルがあり、全ての作成データに対応できている","ルール・マニュアルがあり、全てのデータに対しルール・マニュアルに基づく対応ができており、そのエビデンスが管理できている","","",3,3]
[3,3,41,null,"",5.4,"納入先（顧客）へのデータ提出","5.4.1","顧客に対するデータ提出に関するルールの有無とルールに基づくデータ提出の状況","未回答",null,"顧客へ提出するデータが正しく作成されているかを確認するルールがない","ルールはあるが、それらに基づく業務が実施できていない","ルールがあり、主要な顧客へ提出するデータに対応できている","ルールがあり、全ての顧客へ提出するデータに対応できている","ルールがあり、全てのデータに対しルールに基づく対応ができており、そのエビデンスが管理できている","","",3,3]
[3,3,42,null,"",null,"","5.4.2","データ提出期限を守る仕組みの有無と提出期限内提出の状況","未回答",null,"データ提出期限を守る仕組みがない","データ提出期限を守る仕組みがあるが、データ提出期限をほとんど遵守できていない","データ提出期限を守るための仕組みがあり、主要なデータは提出期限に遅れることなく提出できている","データ提出期限を守るための仕組みがあり、全てのデータは提出期限に遅れることなく提出できている","組織内の業務の流れに準じた仕組みがあり、全てのデータに対し仕組みに基づく対応ができており、そのエビデンスが管理できている","","",3,3]
[3,3,43,null,"",null,"","5.4.3","提出データが顧客にてReject（拒否判定）された場合の対応に関する手順の明確化の有無と実施状況","未回答",null,"提出データが顧客にてReject（拒否判定）された場合の対応に関するマニュアルがない","マニュアルはないが、決められたルールがあり、ルールに基づき業務を遂行している","マニュアルがあり、主要なデータに対応できている","マニュアルがあり、全てのデータに対応できている","組織内の業務の流れに準じたマニュアルがあり、全てのデータに対しマニュアルに基づく対応ができており、そのエビデンスが管理できている","","",3,3]
[3,3,44,null,"",5.5,"データ保管","5.5.1","入手したデータの保管ルールの有無とルールに基づく実施状況","未回答",null,"入手したデータの保管ルールがない","保管ルールはないが、入手データは所定の場所に保管している","仕入れ先からの入手データの保管に関し、組織内の業務の流れに準じたルールがあり、主要な入手データに対応できている","仕入れ先からの入手データの保管に関し、組織内の業務の流れに準じたルールがあり、全ての入手データに対応できている","組織内の業務の流れに準じたルールがあり、全てのデータに対しルールに基づく対応ができており、そのエビデンスが管理できている","","",3,3]
[3,3,45,null,"",null,"","5.5.2","顧客へ提出したデータの保管ルールの有無とルールに基づく実施状況","未回答",null,"顧客へ提出したデータの保管ルールがない","保管ルールはないが、入手データは所定の場所に保管している","顧客への提出データの保管に関し、組織内の業務の流れに準じたルールがあり、主要な提出データに対応できている","顧客への提出データの保管に関し、組織内の業務の流れに準じたルールがあり、全ての提出データに対応できている","組織内の業務の流れに準じたルールがあり、全てのデータに対しルールに基づく対応ができており、そのエビデンスが管理できている","","",3,3]
[3,3,46,null,"",5.6,"データ更新","5.6.1","法規および顧客の基準の変更時のデータ更新（作成・提出・保管）に関する規定の有無と規定に基づく実施状況","未回答",null,"管理基準（法規、顧客要求）変更時のデータ更新（作成・提出・保管）に関するルールがない","顧客へ提出したデータの更新に関する規定ルールはあるが、それらに基づく業務が実施できていない","保管データ（入手・提出）の更新に関する規定があり、主要なデータに対応できている","保管データ（入手・提出）の更新に関する規定があり、全てのデータに対応できている","組織内の業務の流れに準じた規定があり、全てのデータに対し規定に基づく対応ができており、そのエビデンスが管理できている","","",3,3]
[2,2,47,6,"人的資源および文書・情報の管理",6.1,"教育・人材育成","6.1.1","製品含有化学物質管理業務の持続性維持のための仕組み（能力要件、伝承、社内教育）の有無と実態","未回答",null,"製品含有化学物質管理業務の持続性維持の仕組みがない","関係部署間で合意された仕組みがあり、その内容に基づき業務を遂行している","規定があり、定期的（計画的）な教育等ができている","規定があり、計画的な教育等が行われ、受講者の理解度も確認している","規定があり、製品含有化学物質管理の業務実施能力を向上・維持するのための長期的なビジョンとともに対応ができている","","",2,2,{"$f":"D52&\"_\"&E52","v":"6_人的資源および文書・情報の管理"},{"$f":"SUM(Q52:Q55)","v":0},{"$f":"V52/SUM(S52:S55)*100","v":0},{"$f":"SUM(R52:R55)","v":0},{"$f":"X52/SUM(T52:T56)*100","v":0}]
[0,0,48,null,"",null,"","6.1.2","NQ","無効","無効",null,null,null,null,null,"","",0,0]
[2,2,49,null,"",6.2,"文書（製品化学物質管理に係る各種の情報、記録）の管理","6.2.1","記録管理に関する規定（手順書、マニュアル）の有無と管理の実態","未回答",null,"記録管理に関する規定がない","規定はないが、関係部署間で合意されたルールがあり、その内容に基づき業務を遂行している","規定があり、その規定に基づき業務が遂行されている","規定に基づき業務が遂行されており、上記の規定の維持管理、見直しの仕組みがあり、常に最新状態の業務規定を業務に適用している","規定に基づく業務遂行が漏れなく実施されており、業務遂行状況を組織内で管理する仕組みがあり、実行されている","","",2,2]
[2,2,50,null,"",6.3,"教育（6.1.1）、文書管理（6.2.1）の実施状況の評価及び改善","6.3.1","実施状況の評価及び改善をする規定の有無と実態","未回答",null,"実施状況の評価及び改善に関する規定がない","規定はないが仕組みはあり、その内容に基づき業務を遂行している","規定があり、その規定に基づき業務が遂行されている","規定に基づき業務が遂行されており、上記の規定の維持管理、見直しの仕組みがあり、常に最新状態の業務規定を業務に適用している","規定に基づく業務遂行が漏れなく実施されており、業務遂行状況を組織内で管理する仕組みがあり、実行されている","","",2,2]
[]
[]
[]
[null,null,null,"自由意見欄","お取引先様と弊社での化学物質管理全体を通し、要望や相談したい事がございましたら、ご入力ください。\n※入力内容から必要と判断しました場合、弊社から貴社にコンタクトさせていただくことがごさいます。",null,null,{"$f":"IF(入力フォーム!B508<>\"\",入力フォーム!B508,\"\")","v":""}]
[null,null,null,null,"本JAMA・JAPIA製品含有化学物質管理ガイドライン、またはチェックシートに関しまして、要望やご意見等がございましたら、ご入力下さい。",null,null,{"$f":"IF(入力フォーム!B512<>\"\",入力フォーム!B512,\"\")","v":""}]